Workbook

Sheet Hoja1
B2: Información General
B3: Entidad Federativa: | C3: Jalisco
B4: Municipio: | C4: Tonaya
B5: Link de Cuenta Pública: | C5: http://www.tonayajalisco.gob.mx/haciendamunicipal.html
B6: Link de Formatos CONAC: | C6: http://www.tonayajalisco.gob.mx/ManualDeContabilidadGubernamentalDelSistemaSimplificadoGeneral.html
B8: Tema | C8: Información | D8: Concepto | E8: Acreedor o Prestador de Servicio / Subconcepto | F8: Clave de Registro ante la SHCP | G8: Fuente de Pago | H8: Fuente de Pago Alterna | I8: Deudor u Obligado | J8: Monto Contratado (pesos) | K8: Unidad de Contrato | L8: Saldo / Monto Devengado (pesos) | M8: Saldo / Monto Devengado (pesos) | N8: Saldo / Monto Devengado (pesos) | O8: Saldo / Monto Devengado (pesos) | P8: Saldo / Monto Devengado (pesos) | Q8: Amortizaciones / Pago de Inversión (pesos) | R8: Amortizaciones / Pago de Inversión (pesos) | S8: Amortizaciones / Pago de Inversión (pesos) | T8: Amortizaciones / Pago de Inversión (pesos) | U8: Amortizaciones / Pago de Inversión (pesos) | V8: Intereses (pesos) | W8: Intereses (pesos) | X8: Intereses (pesos) | Y8: Intereses (pesos) | Z8: Intereses (pesos) | AA8: Comisiones (pesos) | AB8: Comisiones (pesos) | AC8: Comisiones (pesos) | AD8: Comisiones (pesos) | AE8: Comisiones (pesos) | AF8: Otros Gastos (pesos) | AG8: Otros Gastos (pesos) | AH8: Otros Gastos (pesos) | AI8: Otros Gastos (pesos) | AJ8: Otros Gastos (pesos) | AK8: Saldo / Monto Devengado (pesos) | AL8: Saldo / Monto Devengado (pesos) | AM8: Saldo / Monto Devengado (pesos) | AN8: Saldo / Monto Devengado (pesos) | AO8: Saldo / Monto Devengado (pesos) | AP8: Amortizaciones / Pago de Inversión (pesos) | AQ8: Amortizaciones / Pago de Inversión (pesos) | AR8: Amortizaciones / Pago de Inversión (pesos) | AS8: Amortizaciones / Pago de Inversión (pesos) | AT8: Amortizaciones / Pago de Inversión (pesos) | AU8: Intereses (pesos) | AV8: Intereses (pesos) | AW8: Intereses (pesos) | AX8: Intereses (pesos) | AY8: Intereses (pesos) | AZ8: Comisiones (pesos) | BA8: Comisiones (pesos) | BB8: Comisiones (pesos) | BC8: Comisiones (pesos) | BD8: Comisiones (pesos) | BE8: Otros Gastos (pesos) | BF8: Otros Gastos (pesos) | BG8: Otros Gastos (pesos) | BH8: Otros Gastos (pesos) | BI8: Otros Gastos (pesos) | BJ8: Observaciones
L9: 2016 | M9: 2016 | N9: 2016 | O9: 2016 | P9: 2016 | Q9: 2016 | R9: 2016 | S9: 2016 | T9: 2016 | U9: 2016 | V9: 2016 | W9: 2016 | X9: 2016 | Y9: 2016 | Z9: 2016 | AA9: 2016 | AB9: 2016 | AC9: 2016 | AD9: 2016 | AE9: 2016 | AF9: 2016 | AG9: 2016 | AH9: 2016 | AI9: 2016 | AJ9: 2016 | AK9: 2017 | AL9: 2017 | AM9: 2017 | AN9: 2017 | AO9: 2017 | AP9: 2017 | AQ9: 2017 | AR9: 2017 | AS9: 2017 | AT9: 2017 | AU9: 2017 | AV9: 2017 | AW9: 2017 | AX9: 2017 | AY9: 2017 | AZ9: 2017 | BA9: 2017 | BB9: 2017 | BC9: 2017 | BD9: 2017 | BE9: 2017 | BF9: 2017 | BG9: 2017 | BH9: 2017 | BI9: 2017
L10: 1T | M10: 2T | N10: 3T | O10: 4T | P10: CP | Q10: 1T | R10: 2T | S10: 3T | T10: 4T | U10: CP | V10: 1T | W10: 2T | X10: 3T | Y10: 4T | Z10: CP | AA10: 1T | AB10: 2T | AC10: 3T | AD10: 4T | AE10: CP | AF10: 1T | AG10: 2T | AH10: 3T | AI10: 4T | AJ10: CP | AK10: 1T | AL10: 2T | AM10: 3T | AN10: 4T | AO10: CP | AP10: 1T | AQ10: 2T | AR10: 3T | AS10: 4T | AT10: CP | AU10: 1T | AV10: 2T | AW10: 3T | AX10: 4T | AY10: CP | AZ10: 1T | BA10: 2T | BB10: 3T | BC10: 4T | BD10: CP | BE10: 1T | BF10: 2T | BG10: 3T | BH10: 4T | BI10: CP
B11: Deuda | C11: Deuda Pública y Obligaciones a Largo Plazo, Servicio de la Deuda y Pago de Inversión a Largo Plazo | D11: Crédito de Largo Plazo | E11: Banobras | F11: P-140712106 | G11: Ingresos Propios / Participaciones | I11: Municipio de Tonaya | J11: 4200000 | K11: Pesos | AK11: 180243.24 | AL11: 177165.78 | AM11: 1150000 | AN11: 1000000 | AO11: 720247.76 | AP11: 150000 | AQ11: 150000 | AR11: 150000 | AS11: 150000 | AT11: =SUM(AP11:AS11) -> 600000 | AU11: 30243.24 | AV11: 27165.78 | AW11: 28214.48 | AX11: 24994.77 | AY11: =SUM(AU11:AX11) -> 110618.27 | BJ11: LAS COLUMNAS DEL 1T ASI COMO 2T. TIENE ESTABLECIDAS DICHAS CANTIDADES POR PARTE DE L AUTORIDAD. | BL11: 0
D12: Crédito de Largo Plazo | E12: Banobras | F12: P-140714101 | G12: Ingresos Propios / Participaciones | I12: Municipio de Tonaya | J12: 4000000 | K12: Pesos | AK12: 152396.48 | AL12: 150666.97 | AM12: 2769230.92 | AN12: 2666666.83 | AO12: 452038.24 | AP12: 102564.09 | AQ12: 102564.09 | AR12: 102564.09 | AS12: 102564.09 | AT12: =SUM(AP12:AS12) -> 410256.36 | AU12: 49832.39 | AV12: 48102.88 | AW12: 46410.7 | AX12: 45222.44 | AY12: =SUM(AU12:AX12) -> 189568.41 | BL12: 1
BL13: 1
BL14: 1
BL15: 1
BL16: 1
BL22: 1
BL23: 1
BL24: 1
BL25: 1
B26: Deuda | C26: Obligaciones a Corto Plazo, Servicio de la Deuda de Obligaciones a Corto Plazo
BL27: 1
BL28: 1
BL29: 1
BL30: 1
BL31: 1
BL32: 1
BL33: 1
BL34: 1
BL35: 1
BK36: 1 | BL36: 1
B37: Contabilidad (Pasivo) | C37: Obligaciones a Corto Plazo y Proveedores y Contratistas | D37: Cuentas por Pagar a Corto Plazo | E37: Proveedores por pagar a corto plazo | AM37: 1672425.8 | AN37: 1792496.95 | AO37: =SUM(AK37:AN37) -> 3464922.75 | BK37: 0 | BL37: 0
E38: Contratistas por obra pública por pagar a corto plazo | BK38: 0 | BL38: 0
E39: Otras cuentas por pagar a corto plazo | BK39: 0 | BL39: 0
D40: Documentos por Pagar a Corto Plazo | E40: Documentos comerciales por pagar a corto plazo | BK40: 0 | BL40: 0
E41: Documentos con contratistas por pagar a corto plazo | BK41: 0 | BL41: 0
E42: Otros documentos por pagar a corto plazo | BK42: 0 | BL42: 0
D43: Títulos y Valores a Corto Plazo | E43: Titulos y valores de la deuda pública interna a corto plazo | BL43: 0
D44: Otros Pasivos a Corto Plazo | E44: Otros pasivos circulantes | BK44: 0 | BL44: 0
D45: Otras partidas que registren saldos de Obligaciones de Corto Plazo o de Proveedores y Contratistas | E45: Otras partidas que registren saldos de Obligaciones de Corto Plazo o de Proveedores y Contratistas | BK45: 0 | BL45: 0
B46: Contabilidad (Activo) | C46: Disposición de Efectivo | D46: Efectivo y Equivalentes | E46: Efectivo | AM46: 25500 | AN46: 42200 | AO46: =SUM(AK46:AN46) -> 67700
E47: Bancos/Tesorería | AM47: 4570333.73 | AN47: 1041104.08 | AO47: =SUM(AK47:AN47) -> 5611437.81
E48: Inversiones temporales (hasta 3 meses)
B49: Ingresos | C49: Ingresos de Libre Disposición | D49: Ingresos Locales | E49: Impuestos | L49: 1060551 | M49: 214770 | N49: 343038 | O49: 209673 | P49: 1811521 | AK49: 1046594.28 | AL49: 209572.01 | AM49: 180128.37 | AN49: 180832.17 | AO49: =SUM(AK49:AN49) -> 1617126.83 | BK49: 0 | BL49: 0
E50: Cuotas y aportaciones de seguridad social | BK50: 0 | BL50: 0
E51: Contribuciones de mejoras | BK51: 0 | BL51: 0
E52: Derechos | L52: 2099031 | M52: 398627 | N52: 182020 | O52: 133184 | P52: 2812864 | AK52: 1975524.76 | AL52: 481592.23 | AM52: 79916.13 | AN52: 166531.49 | AO52: =SUM(AK52:AN52) -> 2703564.61 | BK52: 0 | BL52: 0
E53: Productos | L53: 199203 | M53: 244563 | N53: 147807 | O53: 213837 | P53: 845411 | AK53: 149521.16 | AL53: 144226.5 | AM53: 198454.55 | AN53: 230868.32 | AO53: =SUM(AK53:AN53) -> 723070.53 | BK53: 0 | BL53: 0
E54: Aprovechamientos | L54: 207022 | M54: 148255 | N54: 59133 | O54: 400 | P54: 450791 | AM54: 3179912 | AN54: 200 | AO54: =SUM(AK54:AN54) -> 3180112 | BK54: 0 | BL54: 0
E55: Ingresos por venta de bienes y servicios | BK55: 0 | BL55: 0
D56: Participaciones | E56: Fondo General de Participaciones | L56: 3049583 | M56: 3502731 | N56: 3294030 | O56: 3141961 | P56: 12988305 | AK56: 3462885.78 | AL56: 3803464.76 | AM56: 3541272.42 | AN56: 3040044.99 | AO56: =SUM(AK56:AN56) -> 13847667.95 | BK56: 0 | BL56: 0
E57: Fondo de Fomento Municipal | L57: 494991 | M57: 815457 | N57: 822164 | O57: 817765 | P57: 2950377 | AK57: 953168.21 | AL57: 818718.37 | AM57: 843083.69 | AN57: 860784.35 | AO57: =SUM(AK57:AN57) -> 3475754.62 | BK57: 0 | BL57: 0
E58: Fondo de Fiscalización y Recaudación | AL58: 105130.55 | AM58: 134257.67 | AN58: 254742 | AO58: =SUM(AK58:AN58) -> 494130.22 | BK58: 0 | BL58: 0
E59: Fondo de Compensación | BK59: 0 | BL59: 0
E60: Fondo de Extracción de Hidrocarburos | BK60: 0 | BL60: 0
E61: Impuesto Especial Sobre Producción y Servicios | L61: 114461 | M61: 102459 | N61: 108439 | O61: 112229 | P61: 437588 | AK61: 123820.79 | AL61: 108885.47 | AM61: 90637.47 | AN61: 85679.99 | AO61: =SUM(AK61:AN61) -> 409023.72 | BK61: 0 | BL61: 0
E62: 0.136% de la Recaudación Participable | BK62: 0 | BL62: 0
E63: 3,17% Sobre Extracción del Petróleo | BK63: 0 | BL63: 0
E64: Gasolinas y Diesel | BK64: 0 | BL64: 0
E65: Fondo de Impuesto Sobre la Renta | AK65: 69683 | AL65: 37359 | AM65: 807478 | AN65: 80148 | AO65: =SUM(AK65:AN65) -> 994668 | BK65: 0 | BL65: 0
E66: Fondo de Estabilización de los Ingresos de las Entidades Federativas | BK66: 0 | BL66: 0
D67: Incentivos derivados de la colaboración fiscal | E67: Tenencia o Uso de Vehiculos | AK67: 497.55 | AL67: 426.6 | AM67: 298.2 | AN67: 198.25 | AO67: =SUM(AK67:AN67) -> 1420.6 | BK67: 0 | BL67: 0
E68: Fondo de Compensación ISAN | AK68: 14896.53 | AL68: 14896.53 | AM68: 14896.53 | AN68: 14896.53 | AO68: =SUM(AK68:AN68) -> 59586.12 | BK68: 0 | BL68: 0
E69: Impuesto Sobre Automóviles Nuevos | AK69: 99429.03 | AL69: 80650.2 | AM69: 86719.6 | AN69: 94545.27 | AO69: =SUM(AK69:AN69) -> 361344.1 | BK69: 0 | BL69: 0
E70: Fondo de Compensación de Repecos-Intermedios | BK70: 0 | BL70: 0
E71: Otros Incentivos Económicos | BK71: 0 | BL71: 0
D72: Transferencias | E72: Transferencias | BL72: 0
D73: Convenios | E73: Convenios | M73: 374750 | N73: 5808679 | O73: 4857143 | P73: 11040571 | BL73: 0
D74: Otros Ingresos de Libre Disposición | E74: Participaciones en Ingresos Locales | BK74: 0 | BL74: 0
E75: Otros Ingresos de Libre Disposición | BK75: 0 | BL75: 0
D76: (-) Ingresos Virtuales | E76: (-) Ingresos Virtuales | L76: 525364 | P76: 1751213 | BK76: 0 | BL76: 0
B77: Ingresos | C77: Transferencias Federales Etiquetadas | D77: Aportaciones | E77: Fondo de Aportaciones para la Infraestructura Social | L77: 525364 | M77: 525364 | N77: 525364 | O77: 175121 | P77: 1751213 | AK77: 543262.53 | AL77: 543262.53 | AM77: 543262.53 | AN77: 181087.51 | AO77: =SUM(AK77:AN77) -> 1810875.1 | BK77: 0 | BL77: 0
E78: Fondo de Aportaciones para el Fortalecimiento de los Municipios y de las Demarcaciones Territoriales del Distrito Federal | L78: 813888 | M78: 719074 | N78: 766481 | O78: 766481 | P78: 3065924 | AK78: 840074.82 | AL78: 773136.82 | AM78: 840074.82 | AN78: 774713.82 | AO78: =SUM(AK78:AN78) -> 3228000.28 | BL78: 0
D79: Convenios | E79: Convenios de Protección Social en Salud | BK79: 0 | BL79: 0
E80: Convenios de Descentralización | BK80: 0 | BL80: 0
E81: Convenios de Reasignación | BK81: 0 | BL81: 0
E82: Otros Convenios y Subsidios | AL82: 3775339.34 | AM82: 3767586.2 | AO82: =SUM(AK82:AN82) -> 7542925.54 | BK82: 0 | BL82: 0
D83: Fondos Distintos de Aportaciones | E83: Fondo para Entidades Federativas y Municipios Productores de Hidrocarburos | BK83: 0 | BL83: 0
E84: Fondo Minero | BK84: 0 | BL84: 0
E85: Otros Fondos Distintos de Aportaciones | BK85: 0 | BL85: 0
D86: Transferencias, Subsidios y Subvenciones, y Pensiones y Jubilaciones | E86: Transferencias, Subsidios y Subvenciones, y Pensiones y Jubilaciones | BK86: 0 | BL86: 0
D87: Otras Transferencias Federales Etiquetadas | E87: Otras Transferencias Federales Etiquetadas | BK87: 0 | BL87: 0

Sheet Hoja3 (hidden)
A2: Obligaciones a Corto Plazo y Proveedores y Contratistas | B2: Cuentas por Pagar a Corto Plazo | F2: Obligaciones a Corto Plazo y Proveedores y Contratistas | G2: Cuentas por Pagar a Corto Plazo | H2: Proveedores por pagar a corto plazo
A3: Obligaciones a Corto Plazo y Proveedores y Contratistas | B3: Documentos por Pagar a Corto Plazo | F3: Obligaciones a Corto Plazo y Proveedores y Contratistas | G3: Cuentas por Pagar a Corto Plazo | H3: Contratistas por obra pública por pagar a corto plazo
A4: Obligaciones a Corto Plazo y Proveedores y Contratistas | B4: Títulos y Valores a Corto Plazo | F4: Obligaciones a Corto Plazo y Proveedores y Contratistas | G4: Cuentas por Pagar a Corto Plazo | H4: Otras cuentas por pagar a corto plazo
A5: Obligaciones a Corto Plazo y Proveedores y Contratistas | B5: Otros Pasivos a Corto Plazo | F5: Obligaciones a Corto Plazo y Proveedores y Contratistas | G5: Documentos por Pagar a Corto Plazo | H5: Documentos comerciales por pagar a corto plazo
A6: Obligaciones a Corto Plazo y Proveedores y Contratistas | B6: Otras partidas que registren saldos de Obligaciones de Corto Plazo o de Proveedores y Contratistas | F6: Obligaciones a Corto Plazo y Proveedores y Contratistas | G6: Documentos por Pagar a Corto Plazo | H6: Documentos con contratistas por pagar a corto plazo
A7: Ingresos de Libre Disposición | B7: Ingresos Locales | F7: Obligaciones a Corto Plazo y Proveedores y Contratistas | G7: Documentos por Pagar a Corto Plazo | H7: Otros documentos por pagar a corto plazo
A8: Ingresos de Libre Disposición | B8: Participaciones | F8: Obligaciones a Corto Plazo y Proveedores y Contratistas | G8: Títulos y Valores a Corto Plazo | H8: Titulos y valores de la deuda pública interna a corto plazo
A9: Ingresos de Libre Disposición | B9: Incentivos derivados de la colaboración fiscal | F9: Obligaciones a Corto Plazo y Proveedores y Contratistas | G9: Otros Pasivos a Corto Plazo | H9: Otros pasivos circulantes
A10: Ingresos de Libre Disposición | B10: Transferencias | F10: Obligaciones a Corto Plazo y Proveedores y Contratistas | G10: Otras partidas que registren saldos de Obligaciones de Corto Plazo o de Proveedores y Contratistas | H10: Otras partidas que registren saldos de Obligaciones de Corto Plazo o de Proveedores y Contratistas
A11: Ingresos de Libre Disposición | B11: Convenios | F11: Ingresos de Libre Disposición | G11: Ingresos Locales | H11: Impuestos
A12: Ingresos de Libre Disposición | B12: Otros Ingresos de Libre Disposición | F12: Ingresos de Libre Disposición | G12: Ingresos Locales | H12: Cuotas y aportaciones de seguridad social
A13: Ingresos de Libre Disposición | B13: (-) Ingresos Virtuales | F13: Ingresos de Libre Disposición | G13: Ingresos Locales | H13: Contribuciones de mejoras
A14: Transferencias Federales Etiquetadas | B14: Aportaciones | F14: Ingresos de Libre Disposición | G14: Ingresos Locales | H14: Derechos
A15: Transferencias Federales Etiquetadas | B15: Convenios | F15: Ingresos de Libre Disposición | G15: Ingresos Locales | H15: Productos
A16: Transferencias Federales Etiquetadas | B16: Fondos Distintos de Aportaciones | F16: Ingresos de Libre Disposición | G16: Ingresos Locales | H16: Aprovechamientos
A17: Transferencias Federales Etiquetadas | B17: Transferencias, Subsidios y Subvenciones, y Pensiones y Jubilaciones | F17: Ingresos de Libre Disposición | G17: Ingresos Locales | H17: Ingresos por venta de bienes y servicios
A18: Transferencias Federales Etiquetadas | B18: Otras Transferencias Federales Etiquetadas | F18: Ingresos de Libre Disposición | G18: Participaciones | H18: Fondo General de Participaciones
F19: Ingresos de Libre Disposición | G19: Participaciones | H19: Fondo de Fomento Municipal
F20: Ingresos de Libre Disposición | G20: Participaciones | H20: Fondo de Fiscalización y Recaudación
F21: Ingresos de Libre Disposición | G21: Participaciones | H21: Fondo de Compensación
F22: Ingresos de Libre Disposición | G22: Participaciones | H22: Fondo de Extracción de Hidrocarburos
F23: Ingresos de Libre Disposición | G23: Participaciones | H23: Impuesto Especial Sobre Producción y Servicios
F24: Ingresos de Libre Disposición | G24: Participaciones | H24: 0.136% de la Recaudación Participable
F25: Ingresos de Libre Disposición | G25: Participaciones | H25: 3,17% Sobre Extracción del Petróleo
F26: Ingresos de Libre Disposición | G26: Participaciones | H26: Gasolinas y Diesel
F27: Ingresos de Libre Disposición | G27: Participaciones | H27: Fondo de Impuesto Sobre la Renta
F28: Ingresos de Libre Disposición | G28: Participaciones | H28: Fondo de Estabilización de los Ingresos de las Entidades Federativas
F29: Ingresos de Libre Disposición | G29: Incentivos derivados de la colaboración fiscal | H29: Tenencia o Uso de Vehiculos
F30: Ingresos de Libre Disposición | G30: Incentivos derivados de la colaboración fiscal | H30: Fondo de Compensación ISAN
F31: Ingresos de Libre Disposición | G31: Incentivos derivados de la colaboración fiscal | H31: Impuesto Sobre Automóviles Nuevos
F32: Ingresos de Libre Disposición | G32: Incentivos derivados de la colaboración fiscal | H32: Fondo de Compensación de Repecos-Intermedios
F33: Ingresos de Libre Disposición | G33: Incentivos derivados de la colaboración fiscal | H33: Otros Incentivos Económicos
F34: Ingresos de Libre Disposición | G34: Transferencias | H34: Transferencias
F35: Ingresos de Libre Disposición | G35: Convenios | H35: Convenios
F36: Ingresos de Libre Disposición | G36: Otros Ingresos de Libre Disposición | H36: Participaciones en Ingresos Locales
F37: Ingresos de Libre Disposición | G37: Otros Ingresos de Libre Disposición | H37: Otros Ingresos de Libre Disposición
F38: Ingresos de Libre Disposición | G38: (-) Ingresos Virtuales | H38: (-) Ingresos Virtuales
F39: Transferencias Federales Etiquetadas | G39: Aportaciones | H39: Fondo de Aportaciones para la Infraestructura Social
F40: Transferencias Federales Etiquetadas | G40: Aportaciones | H40: Fondo de Aportaciones para el Fortalecimiento de los Municipios y de las Demarcaciones Territoriales del Distrito Federal
F41: Transferencias Federales Etiquetadas | G41: Convenios | H41: Convenios de Protección Social en Salud
F42: Transferencias Federales Etiquetadas | G42: Convenios | H42: Convenios de Descentralización
F43: Transferencias Federales Etiquetadas | G43: Convenios | H43: Convenios de Reasignación
F44: Transferencias Federales Etiquetadas | G44: Convenios | H44: Otros Convenios y Subsidios
F45: Transferencias Federales Etiquetadas | G45: Fondos Distintos de Aportaciones | H45: Fondo para Entidades Federativas y Municipios Productores de Hidrocarburos
F46: Transferencias Federales Etiquetadas | G46: Fondos Distintos de Aportaciones | H46: Fondo Minero
F47: Transferencias Federales Etiquetadas | G47: Fondos Distintos de Aportaciones | H47: Otros Fondos Distintos de Aportaciones
F48: Transferencias Federales Etiquetadas | G48: Transferencias, Subsidios y Subvenciones, y Pensiones y Jubilaciones | H48: Transferencias, Subsidios y Subvenciones, y Pensiones y Jubilaciones
F49: Transferencias Federales Etiquetadas | G49: Otras Transferencias Federales Etiquetadas | H49: Otras Transferencias Federales Etiquetadas

Sheet Soporte (hidden)
A2: 1 | B2: 2 | C2: 3 | D2: 4 | E2: 5 | F2: 6 | G2: 7 | H2: 8 | I2: 9 | J2: 10 | K2: 11 | L2: 12 | M2: 13 | N2: 14 | O2: 15 | P2: 16 | Q2: 17 | R2: 18 | S2: 19 | T2: 20 | U2: 21 | V2: 22 | W2: 23 | X2: 24 | Y2: 25 | Z2: 26 | AA2: 27 | AB2: 28 | AC2: 29 | AD2: 30 | AE2: 31 | AF2: 32 | AG2: 33 | AH2: 34 | AI2: 35 | AJ2: 36
A3: ID | B3: Catalogo/* Columna * | C3: Quintana Roo | D3: Conceptos de Fuente de Pago | E3: Activo | F3: Institucion Financiera (Acreedor) | G3: Activo | H3: Tipo de Obligación | I3: Activo | J3: Tipo de Obligación Corto Plazo | K3: Activo | L3: Año | M3: Activo | N3: Periodos | O3: Activo | P3: Conceptos | Q3: Activo | R3: Concepto Apartados | S3: Apartados | T3: Activo | U3: Concepto Valores | V3: Apartado Valores | W3: Valores | X3: Activo | Y3: Entidades Federativas | Z3: Activo | AA3: Entidad Municipio | AB3: Municipio | AC3: Activo | AD3: Unidades | AE3: Activo | AF3: Conceptos de Fuente de Pago Corto Plazo | AG3: Activo | AH3: Unidades Corto Plazo | AI3: Activo
A4: 0 | B4: Conceptos de Fuente de Pago | C4: 4 | D4: Bono Cupón Cero Estatal | E4: N | F4: Afirme | G4: S | H4: Arrendamiento Financiero Largo Plazo | I4: S | J4: Arrendamiento Financiero Corto Plazo | K4: S | L4: 2016 | M4: S | N4: T1 (Trimestre 1) | O4: S | P4: Obligaciones a Corto Plazo y Proveedores y Contratistas | Q4: S | R4: Obligaciones a Corto Plazo y Proveedores y Contratistas | S4: Cuentas por Pagar a Corto Plazo | T4: S | U4: Obligaciones a Corto Plazo y Proveedores y Contratistas | V4: Cuentas por Pagar a Corto Plazo | W4: Proveedores por pagar a corto plazo | X4: S | Y4: Aguascalientes | Z4: S | AA4: Aguascalientes | AB4: Aguascalientes | AC4: S | AD4: Pesos | AE4: S | AF4: Bono Cupón Cero Estatal | AG4: N | AH4: Pesos | AI4: S
A5: 1 | B5: Institucion Financiera | C5: 6 | D5: FAFEF | E5: N | F5: Arrendador | G5: S | H5: Asociación Público Privada | I5: S | J5: Crédito de Corto Plazo | K5: S | L5: 2017 | M5: N | N5: T2 (Trimestre 2) | O5: S | P5: Ingresos de Libre Disposición | Q5: S | R5: Obligaciones a Corto Plazo y Proveedores y Contratistas | S5: Documentos por Pagar a Corto Plazo | T5: S | U5: Obligaciones a Corto Plazo y Proveedores y Contratistas | V5: Cuentas por Pagar a Corto Plazo | W5: Contratistas por obra pública por pagar a corto plazo | X5: S | Y5: Baja California | Z5: S | AA5: Baja California | AB5: Asientos | AC5: S | AD5: UDIs | AE5: S | AF5: FAFEF | AG5: N | AH5: UDIs | AI5: N
A6: 2 | B6: Tipo de Obligación | C6: 8 | D6: FAIS | E6: N | F6: Bajío | G6: S | H6: Concesión | I6: S | J6: Factoraje Financiero (Cadenas Productivas) de Corto Plazo | K6: S | N6: T3 (Trimestre 3) | O6: S | P6: Transferencias Federales Etiquetadas | Q6: S | R6: Obligaciones a Corto Plazo y Proveedores y Contratistas | S6: Títulos y Valores a Corto Plazo | T6: S | U6: Obligaciones a Corto Plazo y Proveedores y Contratistas | V6: Cuentas por Pagar a Corto Plazo | W6: Otras cuentas por pagar a corto plazo | X6: S | Y6: Baja California Sur | Z6: S | AA6: Baja California Sur | AB6: Calvillo | AC6: S | AF6: FAIS | AG6: N
A7: 3 | B7: Tipo de Obligación Corto Plazo | C7: 10 | D7: FFM | E7: N | F7: Banamex | G7: S | H7: Crédito de Largo Plazo | I7: S | J7: Otros Corto Plazo | K7: N | N7: T4 (Trimestre 4) | O7: S | R7: Obligaciones a Corto Plazo y Proveedores y Contratistas | S7: Otros | T7: S | U7: Obligaciones a Corto Plazo y Proveedores y Contratistas | V7: Documentos por Pagar a Corto Plazo | W7: Documentos comerciales por pagar a corto plazo | X7: S | Y7: Campeche | Z7: S | AA7: Campeche | AB7: Cosío | AC7: S | AF7: FFM | AG7: N
A8: 4 | B8: Año | C8: 12 | D8: FONREC | E8: N | F8: Banco Azteca | G8: S | H8: Deuda avalada, subsidiaria, solidaria o similar | I8: S | J8: Titulos y Valores de Corto Plazo | K8: N | N8: CP (Cuenta Pública) | O8: S | R8: Ingresos de Libre Disposición | S8: Ingresos Locales | T8: S | U8: Obligaciones a Corto Plazo y Proveedores y Contratistas | V8: Documentos por Pagar a Corto Plazo | W8: Documentos con contratistas por pagar a corto plazo | X8: S | Y8: Chiapas | Z8: S | AA8: Coahuila de Zaragoza | AB8: Jesús María | AC8: S | AF8: FONREC | AG8: N
A9: 5 | B9: Periodos | C9: 14 | D9: Justicia Penal | E9: N | F9: Banobras | G9: S | H9: Factoraje Financiero (Cadenas Productivas) de Largo Plazo | I9: S | R9: Ingresos de Libre Disposición | S9: Participaciones | T9: S | U9: Obligaciones a Corto Plazo y Proveedores y Contratistas | V9: Documentos por Pagar a Corto Plazo | W9: Otros documentos por pagar a corto plazo | X9: S | Y9: Chihuahua | Z9: S | AA9: Colima | AB9: Pabellón de Arteaga | AC9: S | AF9: Ingresos Propios / Aportaciones | AG9: N
A10: 6 | B10: Conceptos | C10: 16 | D10: PROFISE | E10: N | F10: Banorte | G10: S | H10: Garantía de Pago Oportuno | I10: S | R10: Ingresos de Libre Disposición | S10: Incentivos derivados de la colaboración fiscal | T10: S | U10: Obligaciones a Corto Plazo y Proveedores y Contratistas | V10: Títulos y Valores a Corto Plazo | W10: Titulos y valores de la deuda pública interna a corto plazo | X10: S | Y10: Ciudad de México | Z10: S | AA10: Chiapas | AB10: Rincón de Romos | AC10: S | AF10: Ingresos Propios / Participaciones | AG10: N
A11: 7 | B11: Concepto Apartados | C11: 18 | D11: FGP | E11: S | F11: Banregio | G11: S | H11: Líneas de Crédito Contingente | I11: S | R11: Ingresos de Libre Disposición | S11: Otros Ingresos | T11: S | U11: Obligaciones a Corto Plazo y Proveedores y Contratistas | V11: Otros | W11: Otros pasivos circulantes | X11: S | Y11: Coahuila | Z11: S | AA11: Chihuahua | AB11: San José de Gracia | AC11: S | AF11: Justicia Penal | AG11: N
A12: 8 | B12: Apartados | C12: 19 | D12: IEPS | E12: S | F12: Bansí | G12: S | H12: Titulos y Valores de Largo Plazo | I12: S | R12: Transferencias Federales Etiquetadas | S12: Aportaciones | T12: S | U12: Obligaciones a Corto Plazo y Proveedores y Contratistas | V12: Otros | W12: Otras partidas que registren saldos de Obligaciones de Corto Plazo o de Proveedores y Contratistas | X12: S | Y12: Colima | Z12: S | AA12: Ciudad de México | AB12: Tepezalá | AC12: S | AF12: N.A. | AG12: N
A13: 9 | B13: Concepto Valores | C13: 21 | D13: Ingresos Propios | E13: S | F13: BBVA Bancomer | G13: S | H13: Otros Largo Plazo | I13: S | R13: Transferencias Federales Etiquetadas | S13: Convenios | T13: S | U13: Ingresos de Libre Disposición | V13: Ingresos Locales | W13: Impuestos | X13: S | Y13: Durango | Z13: S | AA13: Durango | AB13: El Llano | AC13: S | AF13: Participaciones / Aportaciones | AG13: N
A14: 10 | B14: Apartado Valores | C14: 22 | D14: Ingresos Propios / Aportaciones | E14: S | F14: CIBanco | G14: S | H14: Swap de TIIE | I14: S | R14: Transferencias Federales Etiquetadas | S14: Fondos Distintos de Aportaciones | T14: S | U14: Ingresos de Libre Disposición | V14: Ingresos Locales | W14: Cuotas y aportaciones de seguridad social | X14: S | Y14: Guanajuato | Z14: S | AA14: Guanajuato | AB14: San Francisco de los Romo | AC14: S | AF14: PROFISE | AG14: N
A15: 11 | B15: Valores | C15: 23 | D15: Ingresos Propios / Participaciones | E15: S | F15: COFIDAN | G15: S | R15: Transferencias Federales Etiquetadas | S15: Transferencias, Subsidios y Subvenciones, y Pensiones y Jubilaciones | T15: S | U15: Ingresos de Libre Disposición | V15: Ingresos Locales | W15: Contribuciones de mejoras | X15: S | Y15: Guerrero | Z15: S | AA15: Guerrero | AB15: Ensenada | AC15: S | AF15: FGP | AG15: S
A16: 12 | B16: Entidades Federativas | C16: 25 | D16: N.A. | E16: S | F16: Compartamos | G16: S | T16: S | U16: Ingresos de Libre Disposición | V16: Ingresos Locales | W16: Derechos | X16: S | Y16: Hidalgo | Z16: S | AA16: Hidalgo | AB16: Mexicali | AC16: S | AF16: IEPS | AG16: S
A17: 13 | B17: Municipio | C17: 28 | D17: Otros | E17: S | F17: Dexia | G17: S | T17: S | U17: Ingresos de Libre Disposición | V17: Ingresos Locales | W17: Productos | X17: S | Y17: Jalisco | Z17: S | AA17: Jalisco | AB17: Tecate | AC17: S | AF17: Ingresos Propios | AG17: S
A18: 14 | B18: Unidades | C18: 30 | D18: Participaciones / Aportaciones | E18: S | F18: HSBC | G18: S | T18: S | U18: Ingresos de Libre Disposición | V18: Ingresos Locales | W18: Aprovechamientos | X18: S | Y18: México | Z18: S | AA18: México | AB18: Tijuana | AC18: S | AF18: Presupuestal | AG18: S
A19: 15 | B19: Conceptos de Fuente de Pago Corto Plazo | C19: 32 | D19: Presupuestal | E19: S | F19: Inbursa | G19: S | T19: S | U19: Ingresos de Libre Disposición | V19: Ingresos Locales | W19: Ingresos por venta de bienes y servicios | X19: S | Y19: Michoacán | Z19: S | AA19: Michoacán de Ocampo | AB19: Playas de Rosarito | AC19: S | AF19: Quirografario | AG19: S
A20: 16 | B20: Unidades Corto Plazo | C20: 34 | D20: Quirografario | E20: S | F20: Inmobiliario Mexicano | G20: S | U20: Ingresos de Libre Disposición | V20: Participaciones | W20: Fondo General de Participaciones | X20: S | Y20: Morelos | Z20: S | AA20: Morelos | AB20: Comondú | AC20: S | AF20: Otros | AG20: S
A21: 17 | B21: * Tema * | C21: 4 | F21: Interacciones | G21: S | U21: Ingresos de Libre Disposición | V21: Participaciones | W21: Fondo de Fomento Municipal | X21: S | Y21: Nayarit | Z21: S | AA21: Nayarit | AB21: Mulegé | AC21: S
A22: 18 | B22: * Información * | C22: 5 | F22: Invex | G22: S | U22: Ingresos de Libre Disposición | V22: Participaciones | W22: Fondo de Fiscalización y Recaudación | X22: S | Y22: Nuevo León | Z22: S | AA22: Nuevo León | AB22: La Paz | AC22: S
A23: 19 | B23: * Concepto * | C23: 6 | F23: Mifel | G23: S | U23: Ingresos de Libre Disposición | V23: Participaciones | W23: Fondo de Compensación | X23: S | Y23: Oaxaca | Z23: S | AA23: Oaxaca | AB23: Los Cabos | AC23: S
A24: 20 | B24: * Acreedor o Prestador de Servicio / Subconcepto * | C24: 7 | F24: Monex | G24: S | U24: Ingresos de Libre Disposición | V24: Participaciones | W24: Fondo de Extracción de Hidrocarburos | X24: S | Y24: Puebla | Z24: S | AA24: Puebla | AB24: Loreto | AC24: S
A25: 21 | B25: * Clave de Registro ante la SHCP * | C25: 8 | F25: Multiva | G25: S | U25: Ingresos de Libre Disposición | V25: Participaciones | W25: Impuesto Especial Sobre Producción y Servicios | X25: S | Y25: Querétaro | Z25: S | AA25: Querétaro | AB25: Calkiní | AC25: S
A26: 22 | B26: * Fuente de Pago * | C26: 9 | F26: NAFIN | G26: S | U26: Ingresos de Libre Disposición | V26: Participaciones | W26: 0.136% de la Recaudación Participable | X26: S | Y26: Quintana Roo | Z26: S | AA26: Quintana Roo | AB26: Campeche | AC26: S
A27: 23 | B27: * Fuente de Pago Alterna * | C27: 10 | F27: Prestador de servicios | G27: S | U27: Ingresos de Libre Disposición | V27: Participaciones | W27: 3,17% Sobre Extracción del Petróleo | X27: S | Y27: San Luis Potosí | Z27: S | AA27: San Luis Potosí | AB27: Carmen | AC27: S
A28: 24 | B28: * Deudor u Obligado * | C28: 11 | F28: Progreso Chihuahua | G28: S | U28: Ingresos de Libre Disposición | V28: Participaciones | W28: Gasolinas y Diesel | X28: S | Y28: Sinaloa | Z28: S | AA28: Sinaloa | AB28: Champotón | AC28: S
A29: 25 | B29: * Monto Contratado * | C29: 12 | F29: Regional de Monterrey | G29: S | U29: Ingresos de Libre Disposición | V29: Participaciones | W29: Fondo de Impuesto Sobre la Renta | X29: S | Y29: Sonora | Z29: S | AA29: Sonora | AB29: Hecelchakán | AC29: S
A30: 26 | B30: * Unidad de Contrato * | C30: 13 | F30: Santander | G30: S | U30: Ingresos de Libre Disposición | V30: Participaciones | W30: Fondo de Estabilización de los Ingresos de las Entidades Federativas | X30: S | Y30: Tabasco | Z30: S | AA30: Tabasco | AB30: Hopelchén | AC30: S
A31: 27 | B31: * Saldo / Monto Devengado 2016 1T * [Año 1] | C31: 14 | F31: Scotiabank | G31: S | U31: Ingresos de Libre Disposición | V31: Incentivos derivados de la colaboración fiscal | W31: Tenencia o Uso de Vehiculos | X31: S | Y31: Tamaulipas | Z31: S | AA31: Tamaulipas | AB31: Palizada | AC31: S
A32: 28 | B32: * Saldo / Monto Devengado 2016 2T * | C32: 15 | F32: Tenedores Bursátiles | G32: S | U32: Ingresos de Libre Disposición | V32: Incentivos derivados de la colaboración fiscal | W32: Fondo de Compensación ISAN | X32: S | Y32: Tlaxcala | Z32: S | AA32: Tlaxcala | AB32: Tenabo | AC32: S
A33: 29 | B33: * Saldo / Monto Devengado 2016 3T * | C33: 16 | U33: Ingresos de Libre Disposición | V33: Incentivos derivados de la colaboración fiscal | W33: Impuesto Sobre Automóviles Nuevos | X33: S | Y33: Veracruz | Z33: S | AA33: Veracruz de Ignacio de la Llave | AB33: Escárcega | AC33: S
A34: 30 | B34: * Saldo / Monto Devengado 2016 4T * | C34: 17 | U34: Ingresos de Libre Disposición | V34: Incentivos derivados de la colaboración fiscal | W34: Fondo de Compensación de Repecos-Intermedios | X34: S | Y34: Yucatán | Z34: S | AA34: Yucatán | AB34: Calakmul | AC34: S
A35: 31 | B35: * Saldo / Monto Devengado 2016 CP * | C35: 18 | U35: Ingresos de Libre Disposición | V35: Incentivos derivados de la colaboración fiscal | W35: Otros Incentivos Económicos | X35: S | Y35: Zacatecas | Z35: S | AA35: Zacatecas | AB35: Candelaria | AC35: S
A36: 32 | B36: * Amortizaciones / Pago de Inversión 2016 1T * | C36: 19 | U36: Ingresos de Libre Disposición | V36: Otros Ingresos | W36: Transferencias | X36: S | Z36: S | AB36: Abasolo | AC36: S
A37: 33 | B37: * Amortizaciones / Pago de Inversión 2016 2T * | C37: 20 | U37: Ingresos de Libre Disposición | V37: Otros Ingresos | W37: Convenios | X37: S | AB37: Acuña | AC37: S
A38: 34 | B38: * Amortizaciones / Pago de Inversión 2016 3T * | C38: 21 | U38: Ingresos de Libre Disposición | V38: Otros Ingresos | W38: Participaciones en Ingresos Locales | X38: S | AB38: Allende | AC38: S
A39: 35 | B39: * Amortizaciones / Pago de Inversión 2016 4T * | C39: 22 | U39: Ingresos de Libre Disposición | V39: Otros Ingresos | W39: Otros Ingresos de Libre Disposición | X39: S | AB39: Arteaga | AC39: S | BJ39: 1
A40: 36 | B40: * Amortizaciones / Pago de Inversión 2016 CP * | C40: 23 | U40: Ingresos de Libre Disposición | V40: Otros Ingresos | W40: (-) Ingresos Virtuales | X40: S | AB40: Candela | AC40: S
A41: 37 | B41: * Intereses 2016 1T * | C41: 24 | U41: Transferencias Federales Etiquetadas | V41: Aportaciones | W41: Fondo de Aportaciones para la Infraestructura Social | X41: S | AB41: Castaños | AC41: S
A42: 38 | B42: * Intereses 2016 2T * | C42: 25 | U42: Transferencias Federales Etiquetadas | V42: Aportaciones | W42: Fondo de Aportaciones para el Fortalecimiento de los Municipios y de las Demarcaciones Territoriales del Distrito Federal | X42: S | AB42: Cuatro Ciénegas | AC42: S
A43: 39 | B43: * Intereses 2016 3T * | C43: 26 | U43: Transferencias Federales Etiquetadas | V43: Convenios | W43: Convenios de Protección Social en Salud | X43: S | AB43: Escobedo | AC43: S
A44: 40 | B44: * Intereses 2016 4T * | C44: 27 | U44: Transferencias Federales Etiquetadas | V44: Convenios | W44: Convenios de Descentralización | X44: S | AB44: Francisco I. Madero | AC44: S
A45: 41 | B45: * Intereses 2016 CP * | C45: 28 | U45: Transferencias Federales Etiquetadas | V45: Convenios | W45: Convenios de Reasignación | X45: S | AB45: Frontera | AC45: S
A46: 42 | B46: * Comisiones 2016 1T * | C46: 29 | U46: Transferencias Federales Etiquetadas | V46: Convenios | W46: Otros Convenios y Subsidios | X46: S | AB46: General Cepeda | AC46: S
A47: 43 | B47: * Comisiones 2016 2T * | C47: 30 | U47: Transferencias Federales Etiquetadas | V47: Fondos Distintos de Aportaciones | W47: Fondo para Entidades Federativas y Municipios Productores de Hidrocarburos | X47: S | AB47: Guerrero | AC47: S
A48: 44 | B48: * Comisiones 2016 3T * | C48: 31 | U48: Transferencias Federales Etiquetadas | V48: Fondos Distintos de Aportaciones | W48: Fondo Minero | X48: S | AB48: Hidalgo | AC48: S
A49: 45 | B49: * Comisiones 2016 4T * | C49: 32 | U49: Transferencias Federales Etiquetadas | V49: Fondos Distintos de Aportaciones | W49: Otros Fondos Distintos de Aportaciones | X49: S | AB49: Jiménez | AC49: S
A50: 46 | B50: * Comisiones 2016 CP * | C50: 33 | U50: Transferencias Federales Etiquetadas | V50: Transferencias, Subsidios y Subvenciones, y Pensiones y Jubilaciones | W50: Transferencias, Subsidios y Subvenciones, y Pensiones y Jubilaciones | X50: S | AB50: Juárez | AC50: S
A51: 47 | B51: * Otros Gastos 2016 1T * | C51: 34 | U51: Transferencias Federales Etiquetadas | V51: Transferencias, Subsidios y Subvenciones, y Pensiones y Jubilaciones | W51: Otras Transferencias Federales Etiquetadas | X51: S | AB51: Lamadrid | AC51: S
A52: 48 | B52: * Otros Gastos 2016 2T * | C52: 35 | AB52: Matamoros | AC52: S
A53: 49 | B53: * Otros Gastos 2016 3T * | C53: 36 | AB53: Monclova | AC53: S
A54: 50 | B54: * Otros Gastos 2016 4T * | C54: 37 | AB54: Morelos | AC54: S
A55: 51 | B55: * Otros Gastos 2016 CP * | C55: 38 | AB55: Múzquiz | AC55: S
A56: 52 | B56: * Saldo / Monto Devengado 2017 1T * [Año 2] | C56: 39 | AB56: Nadadores | AC56: S
A57: 53 | B57: * Saldo / Monto Devengado 2017 2T * | C57: 40 | AB57: Nava | AC57: S
A58: 54 | B58: * Saldo / Monto Devengado 2017 3T * | C58: 41 | AB58: Ocampo | AC58: S
A59: 55 | B59: * Saldo / Monto Devengado 2017 4T * | C59: 42 | AB59: Parras | AC59: S
A60: 56 | B60: * Saldo / Monto Devengado 2017 CP * | C60: 43 | AB60: Piedras Negras | AC60: S
A61: 57 | B61: * Amortizaciones / Pago de Inversión 2017 1T * | C61: 44 | AB61: Progreso | AC61: S
A62: 58 | B62: * Amortizaciones / Pago de Inversión 2017 2T * | C62: 45 | AB62: Ramos Arizpe | AC62: S
A63: 59 | B63: * Amortizaciones / Pago de Inversión 2017 3T * | C63: 46 | AB63: Sabinas | AC63: S
A64: 60 | B64: * Amortizaciones / Pago de Inversión 2017 4T * | C64: 47 | AB64: Sacramento | AC64: S
A65: 61 | B65: * Amortizaciones / Pago de Inversión 2017 CP * | C65: 48 | AB65: Saltillo | AC65: S
A66: 62 | B66: * Intereses 2017 1T * | C66: 49 | AB66: San Buenaventura | AC66: S
A67: 63 | B67: * Intereses 2017 2T * | C67: 50 | AB67: San Juan de Sabinas | AC67: S
A68: 64 | B68: * Intereses 2017 3T * | C68: 51 | AB68: San Pedro | AC68: S
A69: 65 | B69: * Intereses 2017 4T * | C69: 52 | AB69: Sierra Mojada | AC69: S
A70: 66 | B70: * Intereses 2017 CP * | C70: 53 | AB70: Torreón | AC70: S
A71: 67 | B71: * Comisiones 2017 1T * | C71: 54 | AB71: Viesca | AC71: S
A72: 68 | B72: * Comisiones 2017 2T * | C72: 55 | AB72: Villa Unión | AC72: S
A73: 69 | B73: * Comisiones 2017 3T * | C73: 56 | AB73: Zaragoza | AC73: S
A74: 70 | B74: * Comisiones 2017 4T * | C74: 57 | AB74: Armería | AC74: S
A75: 71 | B75: * Comisiones 2017 CP * | C75: 58 | AB75: Colima | AC75: S
A76: 72 | B76: * Otros Gastos 2017 1T * | C76: 59 | AB76: Comala | AC76: S
A77: 73 | B77: * Otros Gastos 2017 2T * | C77: 60 | AB77: Coquimatlán | AC77: S
A78: 74 | B78: * Otros Gastos 2017 3T * | C78: 61 | AB78: Cuauhtémoc | AC78: S
A79: 75 | B79: * Otros Gastos 2017 4T * | C79: 62 | AB79: Ixtlahuacán | AC79: S
A80: 76 | B80: * Otros Gastos 2017 CP * | C80: 63 | AB80: Manzanillo | AC80: S
A81: 77 | B81: * Observaciones * | C81: 64 | AB81: Minatitlán | AC81: S
AB82: Tecomán | AC82: S
AB83: Villa de Álvarez | AC83: S
AB84: Acacoyagua | AC84: S
AB85: Acala | AC85: S
AB86: Acapetahua | AC86: S
AB87: Altamirano | AC87: S
AB88: Amatán | AC88: S
AB89: Amatenango de la Frontera | AC89: S
AB90: Amatenango del Valle | AC90: S
AB91: Angel Albino Corzo | AC91: S
AB92: Arriaga | AC92: S
AB93: Bejucal de Ocampo | AC93: S
AB94: Bella Vista | AC94: S
AB95: Berriozábal | AC95: S
AB96: Bochil | AC96: S
AB97: El Bosque | AC97: S
AB98: Cacahoatán | AC98: S
AB99: Catazajá | AC99: S
AB100: Cintalapa | AC100: S
AB101: Coapilla | AC101: S
AB102: Comitán de Domínguez | AC102: S
AB103: La Concordia | AC103: S
AB104: Copainalá | AC104: S
AB105: Chalchihuitán | AC105: S
AB106: Chamula | AC106: S
AB107: Chanal | AC107: S
AB108: Chapultenango | AC108: S
AB109: Chenalhó | AC109: S
AB110: Chiapa de Corzo | AC110: S
AB111: Chiapilla | AC111: S
AB112: Chicoasén | AC112: S
AB113: Chicomuselo | AC113: S
AB114: Chilón | AC114: S
AB115: Escuintla | AC115: S
AB116: Francisco León | AC116: S
AB117: Frontera Comalapa | AC117: S
AB118: Frontera Hidalgo | AC118: S
AB119: La Grandeza | AC119: S
AB120: Huehuetán | AC120: S
AB121: Huixtán | AC121: S
AB122: Huitiupán | AC122: S
AB123: Huixtla | AC123: S
AB124: La Independencia | AC124: S
AB125: Ixhuatán | AC125: S
AB126: Ixtacomitán | AC126: S
AB127: Ixtapa | AC127: S
AB128: Ixtapangajoya | AC128: S
AB129: Jiquipilas | AC129: S
AB130: Jitotol | AC130: S
AB131: Juárez | AC131: S
AB132: Larráinzar | AC132: S
AB133: La Libertad | AC133: S
AB134: Mapastepec | AC134: S
AB135: Las Margaritas | AC135: S
AB136: Mazapa de Madero | AC136: S
AB137: Mazatán | AC137: S
AB138: Metapa | AC138: S
AB139: Mitontic | AC139: S
AB140: Motozintla | AC140: S
AB141: Nicolás Ruíz | AC141: S
AB142: Ocosingo | AC142: S
AB143: Ocotepec | AC143: S
AB144: Ocozocoautla de Espinosa | AC144: S
AB145: Ostuacán | AC145: S
AB146: Osumacinta | AC146: S
AB147: Oxchuc | AC147: S
AB148: Palenque | AC148: S
AB149: Pantelhó | AC149: S
AB150: Pantepec | AC150: S
AB151: Pichucalco | AC151: S
AB152: Pijijiapan | AC152: S
AB153: El Porvenir | AC153: S
AB154: Villa Comaltitlán | AC154: S
AB155: Pueblo Nuevo Solistahuacán | AC155: S
AB156: Rayón | AC156: S
AB157: Reforma | AC157: S
AB158: Las Rosas | AC158: S
AB159: Sabanilla | AC159: S
AB160: Salto de Agua | AC160: S
AB161: San Cristóbal de las Casas | AC161: S
AB162: San Fernando | AC162: S
AB163: Siltepec | AC163: S
AB164: Simojovel | AC164: S
AB165: Sitalá | AC165: S
AB166: Socoltenango | AC166: S
AB167: Solosuchiapa | AC167: S
AB168: Soyaló | AC168: S
AB169: Suchiapa | AC169: S
AB170: Suchiate | AC170: S
AB171: Sunuapa | AC171: S
AB172: Tapachula | AC172: S
AB173: Tapalapa | AC173: S
AB174: Tapilula | AC174: S
AB175: Tecpatán | AC175: S
AB176: Tenejapa | AC176: S
AB177: Teopisca | AC177: S
AB178: Tila | AC178: S
AB179: Tonalá | AC179: S
AB180: Totolapa | AC180: S
AB181: La Trinitaria | AC181: S
AB182: Tumbalá | AC182: S
AB183: Tuxtla Gutiérrez | AC183: S
AB184: Tuxtla Chico | AC184: S
AB185: Tuzantán | AC185: S
AB186: Tzimol | AC186: S
AB187: Unión Juárez | AC187: S
AB188: Venustiano Carranza | AC188: S
AB189: Villa Corzo | AC189: S
AB190: Villaflores | AC190: S
AB191: Yajalón | AC191: S
AB192: San Lucas | AC192: S
AB193: Zinacantán | AC193: S
AB194: San Juan Cancuc | AC194: S
AB195: Aldama | AC195: S
AB196: Benemérito de las Américas | AC196: S
AB197: Maravilla Tenejapa | AC197: S
AB198: Marqués de Comillas | AC198: S
AB199: Montecristo de Guerrero | AC199: S
AB200: San Andrés Duraznal | AC200: S
AB201: Santiago el Pinar | AC201: S
... 2260 more rows

Sheet Hoja2 (hidden)
A1: Tema | F1: Tema | G1: 1 | H1: ="* " & F1 & " *" -> * Tema * | K1: Institucion Financiera (Acreedor) | U1: .Cells(lngRenglonDatos + 1, lngColumnaAnio + cboPeriodo.ListIndex).Value | V1: txtCuotasYAporta.Text | W1: =V1 & "=" & U1 -> txtCuotasYAporta.Text=.Cells(lngRenglonDatos + 1, lngColumnaAnio + cboPeriodo.ListIndex).Value
A2: Información | F2: Información | G2: 2 | H2: ="* " & F2 & " *" -> * Información * | K2: ABC Capital | O2: Tocinadas | P2: 2 | Q2: 65 | R2: =P2*Q2 -> 130 | U2: .Cells(lngRenglonDatos + 2, lngColumnaAnio + cboPeriodo.ListIndex).Value | V2: txtContribucDeMejoras.Text | W2: =V2 & "=" & U2 -> txtContribucDeMejoras.Text= .Cells(lngRenglonDatos + 2, lngColumnaAnio + cboPeriodo.ListIndex).Value
A3: Concepto | F3: Concepto | G3: 3 | H3: * Concepto * | K3: American Express Bank (México) | O3: Bistec | P3: 3 | Q3: 20 | R3: =P3*Q3 -> 60 | U3: .Cells(lngRenglonDatos + 3, lngColumnaAnio + cboPeriodo.ListIndex).Value | V3: txtDerechos.Text | W3: txtDerechos.Text= .Cells(lngRenglonDatos + 3, lngColumnaAnio + cboPeriodo.ListIndex).Value
A4: Acreedor o Prestador de Servicio / Subconcepto | F4: Acreedor o Prestador de Servicio / Subconcepto | G4: 4 | H4: * Acreedor o Prestador de Servicio / Subconcepto * | K4: Arrendador | O4: Pastor | P4: 4 | Q4: 8 | R4: =P4*Q4 -> 32 | U4: .Cells(lngRenglonDatos + 4, lngColumnaAnio + cboPeriodo.ListIndex).Value | V4: txtProductos.Text | W4: txtProductos.Text= .Cells(lngRenglonDatos + 4, lngColumnaAnio + cboPeriodo.ListIndex).Value
A5: Clave de Registro ante la SHCP | F5: Clave de Registro ante la SHCP | G5: 5 | H5: * Clave de Registro ante la SHCP * | K5: Banca Afirme | U5: .Cells(lngRenglonDatos + 5, lngColumnaAnio + cboPeriodo.ListIndex).Value | V5: txtAprovecham.Text | W5: txtAprovecham.Text= .Cells(lngRenglonDatos + 5, lngColumnaAnio + cboPeriodo.ListIndex).Value
A6: Fuente de Pago | F6: Fuente de Pago | G6: 6 | H6: * Fuente de Pago * | K6: Banca Mifel | R6: =SUM(R2:R5) -> 222 | U6: .Cells(lngRenglonDatos + 6, lngColumnaAnio + cboPeriodo.ListIndex).Value | V6: txtIngresosPorVta.Text | W6: txtIngresosPorVta.Text= .Cells(lngRenglonDatos + 6, lngColumnaAnio + cboPeriodo.ListIndex).Value
A7: Fuente de Pago Alterna | F7: Fuente de Pago Alterna | G7: 7 | H7: * Fuente de Pago Alterna * | K7: Banco Actinver | W7: =
A8: Deudor u Obligado | F8: Deudor u Obligado | G8: 8 | H8: * Deudor u Obligado * | K8: Banco Ahorro Famsa | U8: .Cells(lngRenglonDatos + 7, lngColumnaAnio + cboPeriodo.ListIndex).Value | V8: txtFondoGral.Text | W8: txtFondoGral.Text= .Cells(lngRenglonDatos + 7, lngColumnaAnio + cboPeriodo.ListIndex).Value
A9: Monto Contratado | F9: Monto Contratado | G9: 9 | H9: * Monto Contratado * | K9: Banco Autofin México | U9: .Cells(lngRenglonDatos + 8, lngColumnaAnio + cboPeriodo.ListIndex).Value | V9: txtlFondoFomentoM.Text | W9: txtlFondoFomentoM.Text= .Cells(lngRenglonDatos + 8, lngColumnaAnio + cboPeriodo.ListIndex).Value
A10: Unidad de Contrato | F10: Unidad de Contrato | G10: 10 | H10: * Unidad de Contrato * | K10: Banco Azteca | U10: .Cells(lngRenglonDatos + 9, lngColumnaAnio + cboPeriodo.ListIndex).Value | V10: txtFondoFiscRecauda.Text | W10: txtFondoFiscRecauda.Text= .Cells(lngRenglonDatos + 9, lngColumnaAnio + cboPeriodo.ListIndex).Value
A11: Saldo / Monto Devengado | B11: 2016 | C11: 1T | D11: =A11 & " " & B11 & " " & C11 -> Saldo / Monto Devengado 2016 1T | F11: Saldo / Monto Devengado 2016 1T | G11: 11 | H11: * Saldo / Monto Devengado 2016 1T * | K11: Banco Base | U11: .Cells(lngRenglonDatos + 10, lngColumnaAnio + cboPeriodo.ListIndex).Value | V11: txtFondoCompensa.Text | W11: txtFondoCompensa.Text= .Cells(lngRenglonDatos + 10, lngColumnaAnio + cboPeriodo.ListIndex).Value
A12: Saldo / Monto Devengado | B12: 2016 | C12: 2T | D12: =A12 & " " & B12 & " " & C12 -> Saldo / Monto Devengado 2016 2T | F12: Saldo / Monto Devengado 2016 2T | G12: 12 | H12: * Saldo / Monto Devengado 2016 2T * | K12: Banco Compartamos | U12: .Cells(lngRenglonDatos + 11, lngColumnaAnio + cboPeriodo.ListIndex).Value | V12: txtlFondoExtracHidro.Text | W12: txtlFondoExtracHidro.Text= .Cells(lngRenglonDatos + 11, lngColumnaAnio + cboPeriodo.ListIndex).Value
A13: Saldo / Monto Devengado | B13: 2016 | C13: 3T | D13: Saldo / Monto Devengado 2016 3T | F13: Saldo / Monto Devengado 2016 3T | G13: 13 | H13: * Saldo / Monto Devengado 2016 3T * | K13: Banco Credit Suisse (México) | U13: .Cells(lngRenglonDatos + 12, lngColumnaAnio + cboPeriodo.ListIndex).Value | V13: txtImpuestoEspProdServ.Text | W13: txtImpuestoEspProdServ.Text= .Cells(lngRenglonDatos + 12, lngColumnaAnio + cboPeriodo.ListIndex).Value
A14: Saldo / Monto Devengado | B14: 2016 | C14: 4T | D14: Saldo / Monto Devengado 2016 4T | F14: Saldo / Monto Devengado 2016 4T | G14: 14 | H14: * Saldo / Monto Devengado 2016 4T * | K14: Banco del Bajío | U14: .Cells(lngRenglonDatos + 13, lngColumnaAnio + cboPeriodo.ListIndex).Value | V14: txt0136Recauda.Text | W14: txt0136Recauda.Text= .Cells(lngRenglonDatos + 13, lngColumnaAnio + cboPeriodo.ListIndex).Value
A15: Saldo / Monto Devengado | B15: 2016 | C15: CP | D15: Saldo / Monto Devengado 2016 CP | F15: Saldo / Monto Devengado 2016 CP | G15: 15 | H15: * Saldo / Monto Devengado 2016 CP * | K15: Banco Finterra | U15: .Cells(lngRenglonDatos + 14, lngColumnaAnio + cboPeriodo.ListIndex).Value | V15: txt317SobreExtrPetroleo.Text | W15: txt317SobreExtrPetroleo.Text= .Cells(lngRenglonDatos + 14, lngColumnaAnio + cboPeriodo.ListIndex).Value
A16: Amortizaciones / Pago de Inversión | B16: 2016 | C16: 1T | D16: Amortizaciones / Pago de Inversión 2016 1T | F16: Amortizaciones / Pago de Inversión 2016 1T | G16: 16 | H16: * Amortizaciones / Pago de Inversión 2016 1T * | K16: Banco Forjadores | U16: .Cells(lngRenglonDatos + 15, lngColumnaAnio + cboPeriodo.ListIndex).Value | V16: txtGasolinaDisel.Text | W16: txtGasolinaDisel.Text= .Cells(lngRenglonDatos + 15, lngColumnaAnio + cboPeriodo.ListIndex).Value
A17: Amortizaciones / Pago de Inversión | B17: 2016 | C17: 2T | D17: Amortizaciones / Pago de Inversión 2016 2T | F17: Amortizaciones / Pago de Inversión 2016 2T | G17: 17 | H17: * Amortizaciones / Pago de Inversión 2016 2T * | K17: Banco Inbursa | U17: .Cells(lngRenglonDatos + 16, lngColumnaAnio + cboPeriodo.ListIndex).Value | V17: txtFondoISR.Text | W17: txtFondoISR.Text= .Cells(lngRenglonDatos + 16, lngColumnaAnio + cboPeriodo.ListIndex).Value
A18: Amortizaciones / Pago de Inversión | B18: 2016 | C18: 3T | D18: Amortizaciones / Pago de Inversión 2016 3T | F18: Amortizaciones / Pago de Inversión 2016 3T | G18: 18 | H18: * Amortizaciones / Pago de Inversión 2016 3T * | K18: Banco Inmobiliario Mexicano | U18: .Cells(lngRenglonDatos + 17, lngColumnaAnio + cboPeriodo.ListIndex).Value | V18: txtFondoEstabilizaIngr.Text | W18: txtFondoEstabilizaIngr.Text= .Cells(lngRenglonDatos + 17, lngColumnaAnio + cboPeriodo.ListIndex).Value
A19: Amortizaciones / Pago de Inversión | B19: 2016 | C19: 4T | D19: Amortizaciones / Pago de Inversión 2016 4T | F19: Amortizaciones / Pago de Inversión 2016 4T | G19: 19 | H19: * Amortizaciones / Pago de Inversión 2016 4T * | K19: Banco Interacciones | W19: =
A20: Amortizaciones / Pago de Inversión | B20: 2016 | C20: CP | D20: Amortizaciones / Pago de Inversión 2016 CP | F20: Amortizaciones / Pago de Inversión 2016 CP | G20: 20 | H20: * Amortizaciones / Pago de Inversión 2016 CP * | K20: Banco Invex | U20: .Cells(lngRenglonDatos + 18, lngColumnaAnio + cboPeriodo.ListIndex).Value | V20: txtTenenciaVehi.Text | W20: txtTenenciaVehi.Text= .Cells(lngRenglonDatos + 18, lngColumnaAnio + cboPeriodo.ListIndex).Value
A21: Intereses | B21: 2016 | C21: 1T | D21: Intereses 2016 1T | F21: Intereses 2016 1T | G21: 21 | H21: * Intereses 2016 1T * | K21: Banco JP Morgan | U21: .Cells(lngRenglonDatos + 19, lngColumnaAnio + cboPeriodo.ListIndex).Value | V21: txtFondoISAN.Text | W21: txtFondoISAN.Text= .Cells(lngRenglonDatos + 19, lngColumnaAnio + cboPeriodo.ListIndex).Value
A22: Intereses | B22: 2016 | C22: 2T | D22: Intereses 2016 2T | F22: Intereses 2016 2T | G22: 22 | H22: * Intereses 2016 2T * | K22: Banco Mercantil del Norte | U22: .Cells(lngRenglonDatos + 20, lngColumnaAnio + cboPeriodo.ListIndex).Value | V22: txtImpuestoAutosNvos.Text | W22: txtImpuestoAutosNvos.Text= .Cells(lngRenglonDatos + 20, lngColumnaAnio + cboPeriodo.ListIndex).Value
A23: Intereses | B23: 2016 | C23: 3T | D23: Intereses 2016 3T | F23: Intereses 2016 3T | G23: 23 | H23: * Intereses 2016 3T * | K23: Banco Monex | U23: .Cells(lngRenglonDatos + 21, lngColumnaAnio + cboPeriodo.ListIndex).Value | V23: txtFondoCompensaRepecos.Text | W23: txtFondoCompensaRepecos.Text= .Cells(lngRenglonDatos + 21, lngColumnaAnio + cboPeriodo.ListIndex).Value
A24: Intereses | B24: 2016 | C24: 4T | D24: Intereses 2016 4T | F24: Intereses 2016 4T | G24: 24 | H24: * Intereses 2016 4T * | K24: Banco Multiva | U24: .Cells(lngRenglonDatos + 22, lngColumnaAnio + cboPeriodo.ListIndex).Value | V24: txtIncentivosEco.Text | W24: txtIncentivosEco.Text= .Cells(lngRenglonDatos + 22, lngColumnaAnio + cboPeriodo.ListIndex).Value
A25: Intereses | B25: 2016 | C25: CP | D25: Intereses 2016 CP | F25: Intereses 2016 CP | G25: 25 | H25: * Intereses 2016 CP * | K25: Banco Nacional de México | W25: =
A26: Comisiones | B26: 2016 | C26: 1T | D26: Comisiones 2016 1T | F26: Comisiones 2016 1T | G26: 26 | H26: * Comisiones 2016 1T * | K26: Banco PagaTodo | U26: .Cells(lngRenglonDatos + 23, lngColumnaAnio + cboPeriodo.ListIndex).Value | V26: txtTransferencias.Text | W26: txtTransferencias.Text= .Cells(lngRenglonDatos + 23, lngColumnaAnio + cboPeriodo.ListIndex).Value
A27: Comisiones | B27: 2016 | C27: 2T | D27: Comisiones 2016 2T | F27: Comisiones 2016 2T | G27: 27 | H27: * Comisiones 2016 2T * | K27: Banco Progreso Chihuahua | U27: .Cells(lngRenglonDatos + 24, lngColumnaAnio + cboPeriodo.ListIndex).Value | V27: txtConvenios.Text | W27: txtConvenios.Text= .Cells(lngRenglonDatos + 24, lngColumnaAnio + cboPeriodo.ListIndex).Value
A28: Comisiones | B28: 2016 | C28: 3T | D28: Comisiones 2016 3T | F28: Comisiones 2016 3T | G28: 28 | H28: * Comisiones 2016 3T * | K28: Banco Regional de Monterrey | U28: .Cells(lngRenglonDatos + 25, lngColumnaAnio + cboPeriodo.ListIndex).Value | V28: txtParticipaIngresosL.Text | W28: txtParticipaIngresosL.Text= .Cells(lngRenglonDatos + 25, lngColumnaAnio + cboPeriodo.ListIndex).Value
A29: Comisiones | B29: 2016 | C29: 4T | D29: Comisiones 2016 4T | F29: Comisiones 2016 4T | G29: 29 | H29: * Comisiones 2016 4T * | K29: Banco Sabadell | U29: .Cells(lngRenglonDatos + 26, lngColumnaAnio + cboPeriodo.ListIndex).Value | V29: txtOtrosIngresosLDisp.Text | W29: txtOtrosIngresosLDisp.Text= .Cells(lngRenglonDatos + 26, lngColumnaAnio + cboPeriodo.ListIndex).Value
A30: Comisiones | B30: 2016 | C30: CP | D30: Comisiones 2016 CP | F30: Comisiones 2016 CP | G30: 30 | H30: * Comisiones 2016 CP * | K30: Banco Santander | U30: .Cells(lngRenglonDatos + 27, lngColumnaAnio + cboPeriodo.ListIndex).Value | V30: txtAjusteParticip.Text | W30: txtAjusteParticip.Text= .Cells(lngRenglonDatos + 27, lngColumnaAnio + cboPeriodo.ListIndex).Value
A31: Otros Gastos | B31: 2016 | C31: 1T | D31: Otros Gastos 2016 1T | F31: Otros Gastos 2016 1T | G31: 31 | H31: * Otros Gastos 2016 1T * | K31: Banco Ve por Más | U31: .Cells(lngRenglonDatos + 28, lngColumnaAnio + cboPeriodo.ListIndex).Value | V31: txtAjusteIngresosV.Text | W31: txtAjusteIngresosV.Text= .Cells(lngRenglonDatos + 28, lngColumnaAnio + cboPeriodo.ListIndex).Value
A32: Otros Gastos | B32: 2016 | C32: 2T | D32: Otros Gastos 2016 2T | F32: Otros Gastos 2016 2T | G32: 32 | H32: * Otros Gastos 2016 2T * | K32: BanCoppel
A33: Otros Gastos | B33: 2016 | C33: 3T | D33: Otros Gastos 2016 3T | F33: Otros Gastos 2016 3T | G33: 33 | H33: * Otros Gastos 2016 3T * | K33: Bancrea
A34: Otros Gastos | B34: 2016 | C34: 4T | D34: Otros Gastos 2016 4T | F34: Otros Gastos 2016 4T | G34: 34 | H34: * Otros Gastos 2016 4T * | K34: Bank Of America Mexico
A35: Otros Gastos | B35: 2016 | C35: CP | D35: Otros Gastos 2016 CP | F35: Otros Gastos 2016 CP | G35: 35 | H35: * Otros Gastos 2016 CP * | K35: Bank Of China Mexico
A36: Saldo / Monto Devengado | B36: 2017 | C36: 1T | D36: Saldo / Monto Devengado 2017 1T | F36: Saldo / Monto Devengado 2017 1T | G36: 36 | H36: * Saldo / Monto Devengado 2017 1T * | K36: Bank Of Tokyo Mitsubishi UFJ (México)
A37: Saldo / Monto Devengado | B37: 2017 | C37: 2T | D37: Saldo / Monto Devengado 2017 2T | F37: Saldo / Monto Devengado 2017 2T | G37: 37 | H37: * Saldo / Monto Devengado 2017 2T * | K37: Bankaool
A38: Saldo / Monto Devengado | B38: 2017 | C38: 3T | D38: Saldo / Monto Devengado 2017 3T | F38: Saldo / Monto Devengado 2017 3T | G38: 38 | H38: * Saldo / Monto Devengado 2017 3T * | K38: Banobras
A39: Saldo / Monto Devengado | B39: 2017 | C39: 4T | D39: Saldo / Monto Devengado 2017 4T | F39: Saldo / Monto Devengado 2017 4T | G39: 39 | H39: * Saldo / Monto Devengado 2017 4T * | K39: Banregio
A40: Saldo / Monto Devengado | B40: 2017 | C40: CP | D40: Saldo / Monto Devengado 2017 CP | F40: Saldo / Monto Devengado 2017 CP | G40: 40 | H40: * Saldo / Monto Devengado 2017 CP * | K40: Bansí
A41: Amortizaciones / Pago de Inversión | B41: 2017 | C41: 1T | D41: Amortizaciones / Pago de Inversión 2017 1T | F41: Amortizaciones / Pago de Inversión 2017 1T | G41: 41 | H41: * Amortizaciones / Pago de Inversión 2017 1T * | K41: Barclays Bank México
A42: Amortizaciones / Pago de Inversión | B42: 2017 | C42: 2T | D42: Amortizaciones / Pago de Inversión 2017 2T | F42: Amortizaciones / Pago de Inversión 2017 2T | G42: 42 | H42: * Amortizaciones / Pago de Inversión 2017 2T * | K42: BBVA Bancomer
A43: Amortizaciones / Pago de Inversión | B43: 2017 | C43: 3T | D43: Amortizaciones / Pago de Inversión 2017 3T | F43: Amortizaciones / Pago de Inversión 2017 3T | G43: 43 | H43: * Amortizaciones / Pago de Inversión 2017 3T * | K43: CIBanco
A44: Amortizaciones / Pago de Inversión | B44: 2017 | C44: 4T | D44: Amortizaciones / Pago de Inversión 2017 4T | F44: Amortizaciones / Pago de Inversión 2017 4T | G44: 44 | H44: * Amortizaciones / Pago de Inversión 2017 4T * | K44: Consubanco
A45: Amortizaciones / Pago de Inversión | B45: 2017 | C45: CP | D45: Amortizaciones / Pago de Inversión 2017 CP | F45: Amortizaciones / Pago de Inversión 2017 CP | G45: 45 | H45: * Amortizaciones / Pago de Inversión 2017 CP * | K45: Deutsche Bank México
A46: Intereses | B46: 2017 | C46: 1T | D46: Intereses 2017 1T | F46: Intereses 2017 1T | G46: 46 | H46: * Intereses 2017 1T * | K46: Fundación Dondé Banco
A47: Intereses | B47: 2017 | C47: 2T | D47: Intereses 2017 2T | F47: Intereses 2017 2T | G47: 47 | H47: * Intereses 2017 2T * | K47: HSBC México
A48: Intereses | B48: 2017 | C48: 3T | D48: Intereses 2017 3T | F48: Intereses 2017 3T | G48: 48 | H48: * Intereses 2017 3T * | K48: Industrial and Commercial Bank of China
A49: Intereses | B49: 2017 | C49: 4T | D49: Intereses 2017 4T | F49: Intereses 2017 4T | G49: 49 | H49: * Intereses 2017 4T * | K49: Intercam Banco
A50: Intereses | B50: 2017 | C50: CP | D50: Intereses 2017 CP | F50: Intereses 2017 CP | G50: 50 | H50: * Intereses 2017 CP * | K50: Investa Bank
A51: Comisiones | B51: 2017 | C51: 1T | D51: Comisiones 2017 1T | F51: Comisiones 2017 1T | G51: 51 | H51: * Comisiones 2017 1T * | K51: Mizuho Bank
A52: Comisiones | B52: 2017 | C52: 2T | D52: Comisiones 2017 2T | F52: Comisiones 2017 2T | G52: 52 | H52: * Comisiones 2017 2T * | K52: Prestador de servicios
A53: Comisiones | B53: 2017 | C53: 3T | D53: Comisiones 2017 3T | F53: Comisiones 2017 3T | G53: 53 | H53: * Comisiones 2017 3T * | K53: Scotiabank
A54: Comisiones | B54: 2017 | C54: 4T | D54: Comisiones 2017 4T | F54: Comisiones 2017 4T | G54: 54 | H54: * Comisiones 2017 4T * | K54: Shinhan Bank
A55: Comisiones | B55: 2017 | C55: CP | D55: Comisiones 2017 CP | F55: Comisiones 2017 CP | G55: 55 | H55: * Comisiones 2017 CP * | K55: UBS Bank México
A56: Otros Gastos | B56: 2017 | C56: 1T | D56: Otros Gastos 2017 1T | F56: Otros Gastos 2017 1T | G56: 56 | H56: * Otros Gastos 2017 1T * | K56: Volkswagen Bank
A57: Otros Gastos | B57: 2017 | C57: 2T | D57: Otros Gastos 2017 2T | F57: Otros Gastos 2017 2T | G57: 57 | H57: * Otros Gastos 2017 2T * | K57: NAFIN
A58: Otros Gastos | B58: 2017 | C58: 3T | D58: Otros Gastos 2017 3T | F58: Otros Gastos 2017 3T | G58: 58 | H58: * Otros Gastos 2017 3T *
A59: Otros Gastos | B59: 2017 | C59: 4T | D59: Otros Gastos 2017 4T | F59: Otros Gastos 2017 4T | G59: 59 | H59: * Otros Gastos 2017 4T *
A60: Otros Gastos | B60: 2017 | C60: CP | D60: Otros Gastos 2017 CP | F60: Otros Gastos 2017 CP | G60: 60 | H60: * Otros Gastos 2017 CP *
A61: Observaciones | F61: Observaciones | G61: 61 | H61: * Observaciones *
A64: Obligaciones de Corto Plazo y Proveedores y Contratista | B64: Cuentas por Pagar a Corto Plazo | C64: Proveedores por pagar a corto plazo | E64: =IF(A64="",E63,A64) -> Obligaciones de Corto Plazo y Proveedores y Contratista | F64: Cuentas por Pagar a Corto Plazo | G64: Proveedores por pagar a corto plazo
C65: Contratistas por obra pública por pagar a corto plazo | E65: Obligaciones de Corto Plazo y Proveedores y Contratista | F65: Cuentas por Pagar a Corto Plazo | G65: Contratistas por obra pública por pagar a corto plazo
C66: Otras cuentas por pagar a corto plazo | E66: =IF(A66="",E65,A66) -> Obligaciones de Corto Plazo y Proveedores y Contratista | F66: =IF(B66="",F65,B66) -> Cuentas por Pagar a Corto Plazo | G66: =IF(C66="",G65,C66) -> Otras cuentas por pagar a corto plazo
B67: Documentos por Pagar a Corto Plazo | C67: Documentos comerciales por pagar a corto plazo | E67: Obligaciones de Corto Plazo y Proveedores y Contratista | F67: Documentos por Pagar a Corto Plazo | G67: Documentos comerciales por pagar a corto plazo
C68: Documentos con contratistas por pagar a corto plazo | E68: Obligaciones de Corto Plazo y Proveedores y Contratista | F68: Documentos por Pagar a Corto Plazo | G68: Documentos con contratistas por pagar a corto plazo
C69: Otros documentos por pagar a corto plazo | E69: Obligaciones de Corto Plazo y Proveedores y Contratista | F69: Documentos por Pagar a Corto Plazo | G69: Otros documentos por pagar a corto plazo
B70: Títulos y Valores a Corto Plazo | C70: Titulos y valores de la deuda pública interna a corto plazo | E70: Obligaciones de Corto Plazo y Proveedores y Contratista | F70: Títulos y Valores a Corto Plazo | G70: Titulos y valores de la deuda pública interna a corto plazo
B71: Otros Pasivos a Corto Plazo | C71: Otros pasivos circulantes | E71: Obligaciones de Corto Plazo y Proveedores y Contratista | F71: Otros Pasivos a Corto Plazo | G71: Otros pasivos circulantes
B72: Otras partidas que registren saldos de Obligaciones de Corto Plazo o de Proveedores y Contratistas | C72: Otras partidas que registren saldos de Obligaciones de Corto Plazo o de Proveedores y Contratistas | E72: Obligaciones de Corto Plazo y Proveedores y Contratista | F72: Otras partidas que registren saldos de Obligaciones de Corto Plazo o de Proveedores y Contratistas | G72: Otras partidas que registren saldos de Obligaciones de Corto Plazo o de Proveedores y Contratistas
A73: Ingresos de Libre Disposición | B73: Ingresos Locales | C73: Impuestos | E73: Ingresos de Libre Disposición | F73: Ingresos Locales | G73: Impuestos
C74: Cuotas y aportaciones de seguridad social | E74: Ingresos de Libre Disposición | F74: Ingresos Locales | G74: Cuotas y aportaciones de seguridad social
C75: Contribuciones de mejoras | E75: Ingresos de Libre Disposición | F75: Ingresos Locales | G75: Contribuciones de mejoras
C76: Derechos | E76: Ingresos de Libre Disposición | F76: Ingresos Locales | G76: Derechos
C77: Productos | E77: Ingresos de Libre Disposición | F77: Ingresos Locales | G77: Productos
C78: Aprovechamientos | E78: Ingresos de Libre Disposición | F78: Ingresos Locales | G78: Aprovechamientos
C79: Ingresos por venta de bienes y servicios | E79: Ingresos de Libre Disposición | F79: Ingresos Locales | G79: Ingresos por venta de bienes y servicios
B80: Participaciones | C80: Fondo General de Participaciones | E80: Ingresos de Libre Disposición | F80: Participaciones | G80: Fondo General de Participaciones
C81: Fondo de Fomento Municipal | E81: Ingresos de Libre Disposición | F81: Participaciones | G81: Fondo de Fomento Municipal
C82: Fondo de Fiscalización y Recaudación | E82: Ingresos de Libre Disposición | F82: Participaciones | G82: Fondo de Fiscalización y Recaudación
C83: Fondo de Compensación | E83: Ingresos de Libre Disposición | F83: Participaciones | G83: Fondo de Compensación
C84: Fondo de Extracción de Hidrocarburos | E84: Ingresos de Libre Disposición | F84: Participaciones | G84: Fondo de Extracción de Hidrocarburos
C85: Impuesto Especial Sobre Producción y Servicios | E85: Ingresos de Libre Disposición | F85: Participaciones | G85: Impuesto Especial Sobre Producción y Servicios
C86: 0.136% de la Recaudación Participable | E86: Ingresos de Libre Disposición | F86: Participaciones | G86: 0.136% de la Recaudación Participable
C87: 3,17% Sobre Extracción del Petróleo | E87: Ingresos de Libre Disposición | F87: Participaciones | G87: 3,17% Sobre Extracción del Petróleo
C88: Gasolinas y Diesel | E88: Ingresos de Libre Disposición | F88: Participaciones | G88: Gasolinas y Diesel
C89: Fondo de Impuesto Sobre la Renta | E89: Ingresos de Libre Disposición | F89: Participaciones | G89: Fondo de Impuesto Sobre la Renta
C90: Fondo de Estabilización de los Ingresos de las Entidades Federativas | E90: Ingresos de Libre Disposición | F90: Participaciones | G90: Fondo de Estabilización de los Ingresos de las Entidades Federativas | K90: 59 | L90: ="RC[-"& K90 &"]," -> RC[-59], | M90: 5 | N90: =".Cells(lngRenglonDatos + " & M90 & ", lngColumnaAnio + cboPeriodo.ListIndex).Value = txtAprovecham.Text" -> .Cells(lngRenglonDatos + 5, lngColumnaAnio + cboPeriodo.ListIndex).Value = txtAprovecham.Text
B91: Incentivos derivados de la colaboración fiscal | C91: Tenencia o Uso de Vehiculos | E91: Ingresos de Libre Disposición | F91: Incentivos derivados de la colaboración fiscal | G91: Tenencia o Uso de Vehiculos | K91: 58 | L91: ="RC[-"& K91 &"]," -> RC[-58], | M91: 6 | N91: =".Cells(lngRenglonDatos + " & M91 & ", lngColumnaAnio + cboPeriodo.ListIndex).Value = txtAprovecham.Text" -> .Cells(lngRenglonDatos + 6, lngColumnaAnio + cboPeriodo.ListIndex).Value = txtAprovecham.Text
C92: Fondo de Compensación ISAN | E92: Ingresos de Libre Disposición | F92: Incentivos derivados de la colaboración fiscal | G92: Fondo de Compensación ISAN | K92: 57 | L92: RC[-57], | M92: 7 | N92: .Cells(lngRenglonDatos + 7, lngColumnaAnio + cboPeriodo.ListIndex).Value = txtAprovecham.Text
C93: Impuesto Sobre Automóviles Nuevos | E93: Ingresos de Libre Disposición | F93: Incentivos derivados de la colaboración fiscal | G93: Impuesto Sobre Automóviles Nuevos | K93: 56 | L93: RC[-56], | M93: 8 | N93: .Cells(lngRenglonDatos + 8, lngColumnaAnio + cboPeriodo.ListIndex).Value = txtAprovecham.Text
C94: Fondo de Compensación de Repecos-Intermedios | E94: Ingresos de Libre Disposición | F94: Incentivos derivados de la colaboración fiscal | G94: Fondo de Compensación de Repecos-Intermedios | K94: 55 | L94: RC[-55], | M94: 9 | N94: .Cells(lngRenglonDatos + 9, lngColumnaAnio + cboPeriodo.ListIndex).Value = txtAprovecham.Text
C95: Otros Incentivos Económicos | E95: Ingresos de Libre Disposición | F95: Incentivos derivados de la colaboración fiscal | G95: Otros Incentivos Económicos | K95: 54 | L95: RC[-54], | M95: 10 | N95: .Cells(lngRenglonDatos + 10, lngColumnaAnio + cboPeriodo.ListIndex).Value = txtAprovecham.Text
B96: Transferencias | C96: Transferencias | E96: Ingresos de Libre Disposición | F96: Transferencias | G96: Transferencias | K96: 53 | L96: RC[-53], | M96: 11 | N96: .Cells(lngRenglonDatos + 11, lngColumnaAnio + cboPeriodo.ListIndex).Value = txtAprovecham.Text
B97: Convenios | C97: Convenios | E97: Ingresos de Libre Disposición | F97: Convenios | G97: Convenios | K97: 52 | L97: RC[-52], | M97: 12 | N97: .Cells(lngRenglonDatos + 12, lngColumnaAnio + cboPeriodo.ListIndex).Value = txtAprovecham.Text
B98: Otros Ingresos de Libre Disposición | C98: Participaciones en Ingresos Locales | E98: Ingresos de Libre Disposición | F98: Otros Ingresos de Libre Disposición | G98: Participaciones en Ingresos Locales | K98: 51 | L98: RC[-51], | M98: 13 | N98: .Cells(lngRenglonDatos + 13, lngColumnaAnio + cboPeriodo.ListIndex).Value = txtAprovecham.Text
C99: Otros Ingresos de Libre Disposición | E99: Ingresos de Libre Disposición | F99: Otros Ingresos de Libre Disposición | G99: Otros Ingresos de Libre Disposición | K99: 50 | L99: RC[-50], | M99: 14 | N99: .Cells(lngRenglonDatos + 14, lngColumnaAnio + cboPeriodo.ListIndex).Value = txtAprovecham.Text
B100: (-) Participaciones e Incentivos Económicos Otorgados municipios | C100: (-) Participaciones e Incentivos Económicos Otorgados municipios | E100: Ingresos de Libre Disposición | F100: (-) Participaciones e Incentivos Económicos Otorgados municipios | G100: (-) Participaciones e Incentivos Económicos Otorgados municipios | K100: 49 | L100: RC[-49], | M100: 15 | N100: .Cells(lngRenglonDatos + 15, lngColumnaAnio + cboPeriodo.ListIndex).Value = txtAprovecham.Text
B101: (-) Ingresos Virtuales | C101: (-) Ingresos Virtuales | E101: Ingresos de Libre Disposición | F101: (-) Ingresos Virtuales | G101: (-) Ingresos Virtuales | K101: 48 | L101: RC[-48], | M101: 16 | N101: .Cells(lngRenglonDatos + 16, lngColumnaAnio + cboPeriodo.ListIndex).Value = txtAprovecham.Text
A102: Transferencias Federales Etiquetadas | B102: Aportaciones | C102: Fondo de Aportaciones para la Nómina Educativa y Gasto Operativo | E102: Transferencias Federales Etiquetadas | F102: Aportaciones | G102: Fondo de Aportaciones para la Nómina Educativa y Gasto Operativo | K102: 47 | L102: RC[-47], | M102: 17 | N102: .Cells(lngRenglonDatos + 17, lngColumnaAnio + cboPeriodo.ListIndex).Value = txtAprovecham.Text
C103: Fondo de Aportaciones para los Servicios de Salud | E103: Transferencias Federales Etiquetadas | F103: Aportaciones | G103: Fondo de Aportaciones para los Servicios de Salud | K103: 46 | L103: RC[-46], | M103: 18 | N103: .Cells(lngRenglonDatos + 18, lngColumnaAnio + cboPeriodo.ListIndex).Value = txtAprovecham.Text
C104: Fondo de Aportaciones para la Infraestructura Social | E104: Transferencias Federales Etiquetadas | F104: Aportaciones | G104: Fondo de Aportaciones para la Infraestructura Social | K104: 45 | L104: RC[-45], | M104: 19 | N104: .Cells(lngRenglonDatos + 19, lngColumnaAnio + cboPeriodo.ListIndex).Value = txtAprovecham.Text
C105: Fondo de Aportaciones para el Fortalecimiento de los Municipios y de las Demarcaciones Territoriales del Distrito Federal | E105: Transferencias Federales Etiquetadas | F105: Aportaciones | G105: Fondo de Aportaciones para el Fortalecimiento de los Municipios y de las Demarcaciones Territoriales del Distrito Federal | K105: 44 | L105: RC[-44], | M105: 20 | N105: .Cells(lngRenglonDatos + 20, lngColumnaAnio + cboPeriodo.ListIndex).Value = txtAprovecham.Text
C106: Fondo de Aportaciones Múltiples | E106: Transferencias Federales Etiquetadas | F106: Aportaciones | G106: Fondo de Aportaciones Múltiples | K106: 43 | L106: RC[-43], | M106: 21 | N106: .Cells(lngRenglonDatos + 21, lngColumnaAnio + cboPeriodo.ListIndex).Value = txtAprovecham.Text
C107: Fondo de Aportaciones para la Educación Tecnológica y de Adultos | E107: Transferencias Federales Etiquetadas | F107: Aportaciones | G107: Fondo de Aportaciones para la Educación Tecnológica y de Adultos | K107: 42 | L107: RC[-42], | M107: 22 | N107: .Cells(lngRenglonDatos + 22, lngColumnaAnio + cboPeriodo.ListIndex).Value = txtAprovecham.Text
C108: Fondo de Aportaciones para la Seguridad Pública de los Estados y de la Ciudad de México | E108: Transferencias Federales Etiquetadas | F108: Aportaciones | G108: Fondo de Aportaciones para la Seguridad Pública de los Estados y de la Ciudad de México | K108: 41 | L108: RC[-41], | M108: 23 | N108: .Cells(lngRenglonDatos + 23, lngColumnaAnio + cboPeriodo.ListIndex).Value = txtAprovecham.Text
C109: Fondo de Aportaciones para el Fortalecimiento de las Entidades Federativas | E109: Transferencias Federales Etiquetadas | F109: Aportaciones | G109: Fondo de Aportaciones para el Fortalecimiento de las Entidades Federativas | K109: 40 | L109: RC[-40], | M109: 24 | N109: .Cells(lngRenglonDatos + 24, lngColumnaAnio + cboPeriodo.ListIndex).Value = txtAprovecham.Text
B110: Convenios | C110: Convenios de Protección Social en Salud | E110: Transferencias Federales Etiquetadas | F110: Convenios | G110: Convenios de Protección Social en Salud | K110: 39 | L110: RC[-39], | M110: 25 | N110: .Cells(lngRenglonDatos + 25, lngColumnaAnio + cboPeriodo.ListIndex).Value = txtAprovecham.Text
C111: Convenios de Descentralización | E111: Transferencias Federales Etiquetadas | F111: Convenios | G111: Convenios de Descentralización | K111: 38 | L111: RC[-38], | M111: 26 | N111: .Cells(lngRenglonDatos + 26, lngColumnaAnio + cboPeriodo.ListIndex).Value = txtAprovecham.Text
C112: Convenios de Reasignación | E112: Transferencias Federales Etiquetadas | F112: Convenios | G112: Convenios de Reasignación | K112: 37 | L112: RC[-37], | M112: 27 | N112: .Cells(lngRenglonDatos + 27, lngColumnaAnio + cboPeriodo.ListIndex).Value = txtAprovecham.Text
C113: Otros Convenios y Subsidios | E113: Transferencias Federales Etiquetadas | F113: Convenios | G113: Otros Convenios y Subsidios | K113: 36 | L113: RC[-36], | M113: 28 | N113: .Cells(lngRenglonDatos + 28, lngColumnaAnio + cboPeriodo.ListIndex).Value = txtAprovecham.Text
B114: Fondos Distintos de Aportaciones | C114: Fondo para Entidades Federativas y Municipios Productores de Hidrocarburos | E114: Transferencias Federales Etiquetadas | F114: Fondos Distintos de Aportaciones | G114: Fondo para Entidades Federativas y Municipios Productores de Hidrocarburos | K114: 35 | L114: RC[-35], | M114: 29 | N114: .Cells(lngRenglonDatos + 29, lngColumnaAnio + cboPeriodo.ListIndex).Value = txtAprovecham.Text
C115: Fondo Minero | E115: Transferencias Federales Etiquetadas | F115: Fondos Distintos de Aportaciones | G115: Fondo Minero | K115: 34 | L115: RC[-34], | M115: 30 | N115: .Cells(lngRenglonDatos + 30, lngColumnaAnio + cboPeriodo.ListIndex).Value = txtAprovecham.Text
C116: Otros Fondos Distintos de Aportaciones | E116: Transferencias Federales Etiquetadas | F116: Fondos Distintos de Aportaciones | G116: Otros Fondos Distintos de Aportaciones | K116: 33 | L116: RC[-33], | M116: 31 | N116: .Cells(lngRenglonDatos + 31, lngColumnaAnio + cboPeriodo.ListIndex).Value = txtAprovecham.Text
B117: Transferencias, Subsidios y Subvenciones, y Pensiones y Jubilaciones | C117: Transferencias, Subsidios y Subvenciones, y Pensiones y Jubilaciones | E117: Transferencias Federales Etiquetadas | F117: Transferencias, Subsidios y Subvenciones, y Pensiones y Jubilaciones | G117: Transferencias, Subsidios y Subvenciones, y Pensiones y Jubilaciones | K117: 32 | L117: RC[-32], | M117: 32 | N117: .Cells(lngRenglonDatos + 32, lngColumnaAnio + cboPeriodo.ListIndex).Value = txtAprovecham.Text
B118: Otras Transferencias Federales Etiquetadas | C118: Otras Transferencias Federales Etiquetadas | E118: Transferencias Federales Etiquetadas | F118: Otras Transferencias Federales Etiquetadas | G118: Otras Transferencias Federales Etiquetadas | K118: 31 | L118: RC[-31], | M118: 33 | N118: .Cells(lngRenglonDatos + 33, lngColumnaAnio + cboPeriodo.ListIndex).Value = txtAprovecham.Text
K119: 30 | L119: RC[-30], | M119: 34 | N119: .Cells(lngRenglonDatos + 34, lngColumnaAnio + cboPeriodo.ListIndex).Value = txtAprovecham.Text
K120: 29 | L120: RC[-29], | M120: 35 | N120: .Cells(lngRenglonDatos + 35, lngColumnaAnio + cboPeriodo.ListIndex).Value = txtAprovecham.Text
K121: 28 | L121: RC[-28], | M121: 36 | N121: .Cells(lngRenglonDatos + 36, lngColumnaAnio + cboPeriodo.ListIndex).Value = txtAprovecham.Text
K122: 27 | L122: RC[-27], | M122: 37 | N122: .Cells(lngRenglonDatos + 37, lngColumnaAnio + cboPeriodo.ListIndex).Value = txtAprovecham.Text
K123: 26 | L123: RC[-26], | M123: 38 | N123: .Cells(lngRenglonDatos + 38, lngColumnaAnio + cboPeriodo.ListIndex).Value = txtAprovecham.Text
K124: 25 | L124: RC[-25], | M124: 39 | N124: .Cells(lngRenglonDatos + 39, lngColumnaAnio + cboPeriodo.ListIndex).Value = txtAprovecham.Text
K125: 24 | L125: RC[-24], | M125: 40 | N125: .Cells(lngRenglonDatos + 40, lngColumnaAnio + cboPeriodo.ListIndex).Value = txtAprovecham.Text
K126: 23 | L126: RC[-23], | M126: 41 | N126: .Cells(lngRenglonDatos + 41, lngColumnaAnio + cboPeriodo.ListIndex).Value = txtAprovecham.Text
K127: 22 | L127: RC[-22], | M127: 42 | N127: .Cells(lngRenglonDatos + 42, lngColumnaAnio + cboPeriodo.ListIndex).Value = txtAprovecham.Text
K128: 21 | L128: RC[-21], | M128: 43 | N128: .Cells(lngRenglonDatos + 43, lngColumnaAnio + cboPeriodo.ListIndex).Value = txtAprovecham.Text
K129: 20 | L129: RC[-20], | M129: 44 | N129: .Cells(lngRenglonDatos + 44, lngColumnaAnio + cboPeriodo.ListIndex).Value = txtAprovecham.Text
K130: 19 | L130: RC[-19], | M130: 45 | N130: .Cells(lngRenglonDatos + 45, lngColumnaAnio + cboPeriodo.ListIndex).Value = txtAprovecham.Text
K131: 18 | L131: RC[-18], | M131: 46 | N131: .Cells(lngRenglonDatos + 46, lngColumnaAnio + cboPeriodo.ListIndex).Value = txtAprovecham.Text
K132: 17 | L132: RC[-17], | M132: 47 | N132: .Cells(lngRenglonDatos + 47, lngColumnaAnio + cboPeriodo.ListIndex).Value = txtAprovecham.Text
K133: 16 | L133: RC[-16], | M133: 48 | N133: .Cells(lngRenglonDatos + 48, lngColumnaAnio + cboPeriodo.ListIndex).Value = txtAprovecham.Text
K134: 15 | L134: RC[-15], | M134: 49 | N134: .Cells(lngRenglonDatos + 49, lngColumnaAnio + cboPeriodo.ListIndex).Value = txtAprovecham.Text
K135: 14 | L135: RC[-14], | M135: 50 | N135: .Cells(lngRenglonDatos + 50, lngColumnaAnio + cboPeriodo.ListIndex).Value = txtAprovecham.Text
K136: 13 | L136: RC[-13], | M136: 51 | N136: .Cells(lngRenglonDatos + 51, lngColumnaAnio + cboPeriodo.ListIndex).Value = txtAprovecham.Text
K137: 12 | L137: RC[-12], | M137: 52 | N137: .Cells(lngRenglonDatos + 52, lngColumnaAnio + cboPeriodo.ListIndex).Value = txtAprovecham.Text
K138: 11 | L138: RC[-11], | M138: 53 | N138: .Cells(lngRenglonDatos + 53, lngColumnaAnio + cboPeriodo.ListIndex).Value = txtAprovecham.Text
K139: 10 | L139: RC[-10], | M139: 54 | N139: .Cells(lngRenglonDatos + 54, lngColumnaAnio + cboPeriodo.ListIndex).Value = txtAprovecham.Text
K140: 9 | L140: RC[-9], | M140: 55 | N140: .Cells(lngRenglonDatos + 55, lngColumnaAnio + cboPeriodo.ListIndex).Value = txtAprovecham.Text
K141: 8 | L141: RC[-8], | M141: 56 | N141: .Cells(lngRenglonDatos + 56, lngColumnaAnio + cboPeriodo.ListIndex).Value = txtAprovecham.Text
K142: 7 | L142: RC[-7], | M142: 57 | N142: .Cells(lngRenglonDatos + 57, lngColumnaAnio + cboPeriodo.ListIndex).Value = txtAprovecham.Text
K143: 6 | L143: RC[-6], | M143: 58 | N143: .Cells(lngRenglonDatos + 58, lngColumnaAnio + cboPeriodo.ListIndex).Value = txtAprovecham.Text
K144: 5 | L144: RC[-5], | M144: 59 | N144: .Cells(lngRenglonDatos + 59, lngColumnaAnio + cboPeriodo.ListIndex).Value = txtAprovecham.Text
K145: 4 | L145: RC[-4], | M145: 60 | N145: .Cells(lngRenglonDatos + 60, lngColumnaAnio + cboPeriodo.ListIndex).Value = txtAprovecham.Text
K146: 3 | L146: RC[-3], | M146: 61 | N146: .Cells(lngRenglonDatos + 61, lngColumnaAnio + cboPeriodo.ListIndex).Value = txtAprovecham.Text
K147: 2 | L147: RC[-2], | M147: 62 | N147: .Cells(lngRenglonDatos + 62, lngColumnaAnio + cboPeriodo.ListIndex).Value = txtAprovecham.Text
K148: 1 | L148: =CONCATENATE(XDI148, XDJ148, XDK148, XDL148, XDM148, XDN148, XDO148, XDP148, XDQ148, XDR148, XDS148, XDT148, XDU148, XDV148, XDW148, XDX148, XDY148, XDZ148, XEA148, XEB148, XEC148, XED148, XEE148, XEF148, XEG148, XEH148, XEI148, XEJ148, XEK148, XEL148, XEM148, XEN148, XEO148, XEP148, XEQ148, XER148, XES148, XET148, XEU148, XEV148, XEW148, XEX148, XEY148, XEZ148, XFA148, XFB148, XFC148, XFD148, A148, B148, C148, D148, E148, F148, G148, H148, I148, J148, K148) -> 1 | M148: 63 | N148: .Cells(lngRenglonDatos + 63, lngColumnaAnio + cboPeriodo.ListIndex).Value = txtAprovecham.Text
M149: 64 | N149: .Cells(lngRenglonDatos + 64, lngColumnaAnio + cboPeriodo.ListIndex).Value = txtAprovecham.Text
